Department family,Entity,Date,Expense type,Expense area,Supplier,Transaction number,Amount
Department of Health,Leicestershire Partnership NHS Trust,03/10/22,Meeting expenses /Room Hire,Diana Nursing HQ,COMM HLTH PARTNERSHIPS LTD,0060261142,61936.66
Department of Health,Leicestershire Partnership NHS Trust,03/10/22,Rent,NSPCC Training Cente,NSPCC,119933,28752.40
Department of Health,Leicestershire Partnership NHS Trust,03/10/22,Crs_NHS_LT1y -Resus Inventory Supplied.,Balance Sheet Collection,SUPPLY CHAIN CO LTD,1123141964,43108.54
Department of Health,Leicestershire Partnership NHS Trust,03/10/22,Computer License  Fees,Finance Department,VERSION 1,INVSOL014764,38084.10
Department of Health,Leicestershire Partnership NHS Trust,04/10/22,Unitary Payment,"The Agnes Unit (AKA Assessment and Treatment Centre) (P85, LPT)",ARDEN PARTNERSHIP (LEICESTER),SI0106,127037.34
Department of Health,Leicestershire Partnership NHS Trust,04/10/22,Leased / Hired Vehicles,Adult County South Leicestershire CMHT,LEASEPLAN,510526940,20.00
Department of Health,Leicestershire Partnership NHS Trust,04/10/22,Leased / Hired Vehicles,Adult County West Leicestershire CMHT,LEASEPLAN,510526940,20.00
Department of Health,Leicestershire Partnership NHS Trust,04/10/22,Leased / Hired Vehicles,Autism,LEASEPLAN,510526940,638.96
Department of Health,Leicestershire Partnership NHS Trust,04/10/22,Prep_ LT1y -Prepayments Lease Cars,Balance Sheet Collection,LEASEPLAN,510526940,34900.60
Department of Health,Leicestershire Partnership NHS Trust,04/10/22,Trade_Drs_LT1y -Lease Cars Invoicing Contrl Ac.,Balance Sheet Collection,LEASEPLAN,510526940,2423.37
Department of Health,Leicestershire Partnership NHS Trust,04/10/22,VAT_Drs _ LT1y -VAT Contracted Out Services Input Tax,Balance Sheet Collection,LEASEPLAN,510526940,352.10
Department of Health,Leicestershire Partnership NHS Trust,04/10/22,Leased / Hired Vehicles,CHS Phlebotomy Service,LEASEPLAN,510526940,593.05
Department of Health,Leicestershire Partnership NHS Trust,04/10/22,Leased / Hired Vehicles,COVID 19,LEASEPLAN,510526940,944.72
Department of Health,Leicestershire Partnership NHS Trust,04/10/22,Leased / Hired Vehicles,Children's Occupational Therapy,LEASEPLAN,510526940,10.00
Department of Health,Leicestershire Partnership NHS Trust,04/10/22,Leased / Hired Vehicles,City Planned Care - East - Therapy,LEASEPLAN,510526940,10.00
Department of Health,Leicestershire Partnership NHS Trust,04/10/22,Leased / Hired Vehicles,City Planned Care - West,LEASEPLAN,510526940,20.00
Department of Health,Leicestershire Partnership NHS Trust,04/10/22,Leased / Hired Vehicles,County 0-19 South Charnwood HV,LEASEPLAN,510526940,82.30
Department of Health,Leicestershire Partnership NHS Trust,04/10/22,Leased / Hired Vehicles,Crisis Resolution,LEASEPLAN,510526940,20.00
Department of Health,Leicestershire Partnership NHS Trust,04/10/22,Leased / Hired Vehicles,HIS Infrastructure,LEASEPLAN,510526940,15.00
Department of Health,Leicestershire Partnership NHS Trust,04/10/22,Leased / Hired Vehicles,Integrated Care Service - Rutland,LEASEPLAN,510526940,958.28
Department of Health,Leicestershire Partnership NHS Trust,04/10/22,Leased / Hired Vehicles,Lough Admin,LEASEPLAN,510526940,40.00
Department of Health,Leicestershire Partnership NHS Trust,04/10/22,Leased / Hired Vehicles,PIER Team - Early Intervention Services,LEASEPLAN,510526940,551.60
Department of Health,Leicestershire Partnership NHS Trust,04/10/22,Leased / Hired Vehicles,School Age Immunisation and Vaccinations,LEASEPLAN,510526940,721.44
Department of Health,Leicestershire Partnership NHS Trust,04/10/22,Leased / Hired Vehicles,West Planned Care  - Hinckley Hub,LEASEPLAN,510526940,65.00
Department of Health,Leicestershire Partnership NHS Trust,04/10/22,Leased / Hired Vehicles,West Planned Care - NWL Hub,LEASEPLAN,510526940,25.00
Department of Health,Leicestershire Partnership NHS Trust,05/10/22,Medical Equipment Repairs / Maintenance,Community Health Services Management,SPIRIT DIGITAL LTD,SIN220905SDI00030,43740.00
Department of Health,Leicestershire Partnership NHS Trust,05/10/22,WIP Project Not in BS - I M & T Allocations,Work in Progress,SPIRIT DIGITAL LTD,SIN221005SDI00031,405600.00
Department of Health,Leicestershire Partnership NHS Trust,06/10/22,NURSE - BAND 2 - AGENCY,Beechwood Ward,HCL NURSING,HNSI0001147,4441.22
Department of Health,Leicestershire Partnership NHS Trust,06/10/22,NURSE - BAND 5 - AGENCY,Beechwood Ward,HCL NURSING,HNSI0001147,3298.06
Department of Health,Leicestershire Partnership NHS Trust,06/10/22,NURSE - BAND 2 - AGENCY,CHS Surge Ward,HCL NURSING,HNSI0001147,8627.76
Department of Health,Leicestershire Partnership NHS Trust,06/10/22,NURSE - BAND 5 - AGENCY,CHS Surge Ward,HCL NURSING,HNSI0001147,665.71
Department of Health,Leicestershire Partnership NHS Trust,06/10/22,NURSE - BAND 5 - AGENCY,City Planned Care - East,HCL NURSING,HNSI0001147,8615.81
Department of Health,Leicestershire Partnership NHS Trust,06/10/22,NURSE - BAND 5 - AGENCY,City Planned Care - West,HCL NURSING,HNSI0001147,8367.85
Department of Health,Leicestershire Partnership NHS Trust,06/10/22,NURSE - BAND 2 - AGENCY,Clarendon Ward,HCL NURSING,HNSI0001147,2374.18
Department of Health,Leicestershire Partnership NHS Trust,06/10/22,NURSE - BAND 5 - AGENCY,Clarendon Ward,HCL NURSING,HNSI0001147,3410.32
Department of Health,Leicestershire Partnership NHS Trust,06/10/22,NURSE - BAND 2 - AGENCY,Coalville Snibston Ward,HCL NURSING,HNSI0001147,2786.06
Department of Health,Leicestershire Partnership NHS Trust,06/10/22,NURSE - BAND 5 - AGENCY,Coalville Snibston Ward,HCL NURSING,HNSI0001147,2321.70
Department of Health,Leicestershire Partnership NHS Trust,06/10/22,NURSE - BAND 2 - AGENCY,Coalville Ward 2,HCL NURSING,HNSI0001147,347.15
Department of Health,Leicestershire Partnership NHS Trust,06/10/22,NURSE - BAND 5 - AGENCY,Coalville Ward 2,HCL NURSING,HNSI0001147,6661.40
Department of Health,Leicestershire Partnership NHS Trust,06/10/22,NURSE - BAND 2 - AGENCY,Dalgliesh Ward,HCL NURSING,HNSI0001147,5630.01
Department of Health,Leicestershire Partnership NHS Trust,06/10/22,NURSE - BAND 5 - AGENCY,Dalgliesh Ward,HCL NURSING,HNSI0001147,4652.06
Department of Health,Leicestershire Partnership NHS Trust,06/10/22,NURSE - BAND 5 - AGENCY,"East Planned Care - Oadby,Wigston & Harborough",HCL NURSING,HNSI0001147,782.15
Department of Health,Leicestershire Partnership NHS Trust,06/10/22,NURSE - BAND 2 - AGENCY,H&B Comm Hosp East Ward,HCL NURSING,HNSI0001147,4062.99
Department of Health,Leicestershire Partnership NHS Trust,06/10/22,NURSE - BAND 5 - AGENCY,H&B Comm Hosp East Ward,HCL NURSING,HNSI0001147,5549.25
Department of Health,Leicestershire Partnership NHS Trust,06/10/22,NURSE - BAND 2 - AGENCY,H&B Comm Hosp North Ward,HCL NURSING,HNSI0001147,4403.35
Department of Health,Leicestershire Partnership NHS Trust,06/10/22,NURSE - BAND 5 - AGENCY,H&B Comm Hosp North Ward,HCL NURSING,HNSI0001147,3114.01
Department of Health,Leicestershire Partnership NHS Trust,06/10/22,NURSE - BAND 2 - AGENCY,Lough Swithland Ward,HCL NURSING,HNSI0001147,4304.16
Department of Health,Leicestershire Partnership NHS Trust,06/10/22,NURSE - BAND 5 - AGENCY,Lough Swithland Ward,HCL NURSING,HNSI0001147,4315.20
Department of Health,Leicestershire Partnership NHS Trust,06/10/22,NURSE - BAND 2 - AGENCY,Rutland Ward Nursing,HCL NURSING,HNSI0001147,3005.43
Department of Health,Leicestershire Partnership NHS Trust,06/10/22,NURSE - BAND 5 - AGENCY,Rutland Ward Nursing,HCL NURSING,HNSI0001147,5663.93
Department of Health,Leicestershire Partnership NHS Trust,06/10/22,NURSE - BAND 2 - AGENCY,St Lukes Stroke Ward,HCL NURSING,HNSI0001147,6788.74
Department of Health,Leicestershire Partnership NHS Trust,06/10/22,NURSE - BAND 5 - AGENCY,St Lukes Stroke Ward,HCL NURSING,HNSI0001147,423.09
Department of Health,Leicestershire Partnership NHS Trust,06/10/22,NURSE - BAND 2 - AGENCY,St Lukes Ward 3,HCL NURSING,HNSI0001147,3700.68
Department of Health,Leicestershire Partnership NHS Trust,06/10/22,NURSE - BAND 5 - AGENCY,St Lukes Ward 3,HCL NURSING,HNSI0001147,2132.72
Department of Health,Leicestershire Partnership NHS Trust,06/10/22,External Data Processing / Storage,Records & information Governance,L&R STORAGE,4010831,41173.58
Department of Health,Leicestershire Partnership NHS Trust,06/10/22,Healthcare Services / Recharges from Non-NHS Bodies,Adult Eating Disorder Collaborative,PRIORY GROUP,301SEP22LECAED,49561.62
Department of Health,Leicestershire Partnership NHS Trust,06/10/22,Services / Recharges from NHS Commissioners,AMHS Management,TURNING POINT,SC-TPS-00005264,-257842.00
Department of Health,Leicestershire Partnership NHS Trust,07/10/22,WIP Project Not in BS - Buildings excl Dwellings,Work in Progress,TILBURY DOUGLAS CONSTRUCTION LTD,22100047,31095.48
Department of Health,Leicestershire Partnership NHS Trust,07/10/22,WIP Project Not in BS - Buildings excl Dwellings,Work in Progress,TILBURY DOUGLAS CONSTRUCTION LTD,22100048,173622.35
Department of Health,Leicestershire Partnership NHS Trust,07/10/22,WIP Project Not in BS - Buildings excl Dwellings,Work in Progress,TILBURY DOUGLAS CONSTRUCTION LTD,22100049,201273.94
Department of Health,Leicestershire Partnership NHS Trust,10/10/22,Payroll Deductions -Home Electronics 72 Sep 22,Balance Sheet Collection,SME HCI LTD,141426,44271.60
Department of Health,Leicestershire Partnership NHS Trust,10/10/22,Payroll Deductions -NEST EES Pensions,Balance Sheet Collection,NEST,P06DEDS-313/2022,18678.14
Department of Health,Leicestershire Partnership NHS Trust,10/10/22,Payroll Deductions -NEST ERS Pensions,Balance Sheet Collection,NEST,P06DEDS-313/2022,14000.06
Department of Health,Leicestershire Partnership NHS Trust,10/10/22,NURSE - BAND 2 - AGENCY,Beechwood Ward,HCL NURSING,HNSI0001151,1731.48
Department of Health,Leicestershire Partnership NHS Trust,10/10/22,NURSE - BAND 5 - AGENCY,Beechwood Ward,HCL NURSING,HNSI0001151,3851.93
Department of Health,Leicestershire Partnership NHS Trust,10/10/22,NURSE - BAND 2 - AGENCY,CHS Surge Ward,HCL NURSING,HNSI0001151,9127.82
Department of Health,Leicestershire Partnership NHS Trust,10/10/22,NURSE - BAND 5 - AGENCY,CHS Surge Ward,HCL NURSING,HNSI0001151,4544.91
Department of Health,Leicestershire Partnership NHS Trust,10/10/22,NURSE - BAND 5 - AGENCY,City Planned Care - East,HCL NURSING,HNSI0001151,12368.47
Department of Health,Leicestershire Partnership NHS Trust,10/10/22,NURSE - BAND 5 - AGENCY,City Planned Care - West,HCL NURSING,HNSI0001151,10584.74
Department of Health,Leicestershire Partnership NHS Trust,10/10/22,NURSE - BAND 2 - AGENCY,Clarendon Ward,HCL NURSING,HNSI0001151,3867.21
Department of Health,Leicestershire Partnership NHS Trust,10/10/22,NURSE - BAND 5 - AGENCY,Clarendon Ward,HCL NURSING,HNSI0001151,3267.81
Department of Health,Leicestershire Partnership NHS Trust,10/10/22,NURSE - BAND 2 - AGENCY,Coalville Snibston Ward,HCL NURSING,HNSI0001151,3079.11
Department of Health,Leicestershire Partnership NHS Trust,10/10/22,NURSE - BAND 2 - AGENCY,Coalville Ward 2,HCL NURSING,HNSI0001151,1716.26
Department of Health,Leicestershire Partnership NHS Trust,10/10/22,NURSE - BAND 5 - AGENCY,Coalville Ward 2,HCL NURSING,HNSI0001151,2838.09
Department of Health,Leicestershire Partnership NHS Trust,10/10/22,NURSE - BAND 2 - AGENCY,Dalgliesh Ward,HCL NURSING,HNSI0001151,4547.83
Department of Health,Leicestershire Partnership NHS Trust,10/10/22,NURSE - BAND 5 - AGENCY,Dalgliesh Ward,HCL NURSING,HNSI0001151,5934.50
Department of Health,Leicestershire Partnership NHS Trust,10/10/22,NURSE - BAND 2 - AGENCY,H&B Comm Hosp East Ward,HCL NURSING,HNSI0001151,5903.29
Department of Health,Leicestershire Partnership NHS Trust,10/10/22,NURSE - BAND 5 - AGENCY,H&B Comm Hosp East Ward,HCL NURSING,HNSI0001151,5902.78
Department of Health,Leicestershire Partnership NHS Trust,10/10/22,NURSE - BAND 2 - AGENCY,H&B Comm Hosp North Ward,HCL NURSING,HNSI0001151,2093.20
Department of Health,Leicestershire Partnership NHS Trust,10/10/22,NURSE - BAND 5 - AGENCY,H&B Comm Hosp North Ward,HCL NURSING,HNSI0001151,973.84
Department of Health,Leicestershire Partnership NHS Trust,10/10/22,NURSE - BAND 5 - AGENCY,Lough Swithland Ward,HCL NURSING,HNSI0001151,4766.54
Department of Health,Leicestershire Partnership NHS Trust,10/10/22,NURSE - BAND 2 - AGENCY,Rutland Ward Nursing,HCL NURSING,HNSI0001151,4119.50
Department of Health,Leicestershire Partnership NHS Trust,10/10/22,NURSE - BAND 5 - AGENCY,Rutland Ward Nursing,HCL NURSING,HNSI0001151,3772.76
Department of Health,Leicestershire Partnership NHS Trust,10/10/22,NURSE - BAND 2 - AGENCY,St Lukes Stroke Ward,HCL NURSING,HNSI0001151,3887.94
Department of Health,Leicestershire Partnership NHS Trust,10/10/22,NURSE - BAND 5 - AGENCY,St Lukes Stroke Ward,HCL NURSING,HNSI0001151,389.68
Department of Health,Leicestershire Partnership NHS Trust,10/10/22,NURSE - BAND 2 - AGENCY,St Lukes Ward 3,HCL NURSING,HNSI0001151,2345.81
Department of Health,Leicestershire Partnership NHS Trust,10/10/22,NURSE - BAND 5 - AGENCY,St Lukes Ward 3,HCL NURSING,HNSI0001151,927.13
Department of Health,Leicestershire Partnership NHS Trust,10/10/22,Crs_NHS_LT1y -Resus Inventory Supplied.,Balance Sheet Collection,SUPPLY CHAIN CO LTD,1123144903,70314.42
Department of Health,Leicestershire Partnership NHS Trust,10/10/22,Healthcare Services / Recharges from Non-NHS Bodies,Adult Eating Disorder Collaborative,NAVIGO H&SC CIC,SAL-INV-7450,29198.36
Department of Health,Leicestershire Partnership NHS Trust,11/10/22,Nurse - Band 6 -Agency,AMH - Central Access Point,HCL NURSING,HNSI0001150,815.61
Department of Health,Leicestershire Partnership NHS Trust,11/10/22,Nurse - Band 7 - Agency,Adult County- East Leicester CMHT,HCL NURSING,HNSI0001150,1414.73
Department of Health,Leicestershire Partnership NHS Trust,11/10/22,NURSE - BAND 2 - AGENCY,Agnes Unit,HCL NURSING,HNSI0001150,15728.99
Department of Health,Leicestershire Partnership NHS Trust,11/10/22,NURSE - BAND 5 - AGENCY,Agnes Unit,HCL NURSING,HNSI0001150,17008.06
Department of Health,Leicestershire Partnership NHS Trust,11/10/22,NURSE - BAND 2 - AGENCY,Ashby Ward (Bradgate Unit),HCL NURSING,HNSI0001150,9052.99
Department of Health,Leicestershire Partnership NHS Trust,11/10/22,NURSE - BAND 5 - AGENCY,Ashby Ward (Bradgate Unit),HCL NURSING,HNSI0001150,10344.87
Department of Health,Leicestershire Partnership NHS Trust,11/10/22,NURSE - BAND 2 - AGENCY,Beaumont Ward - Bradgate Unit,HCL NURSING,HNSI0001150,5649.13
Department of Health,Leicestershire Partnership NHS Trust,11/10/22,NURSE - BAND 5 - AGENCY,Beaumont Ward - Bradgate Unit,HCL NURSING,HNSI0001150,8638.57
Department of Health,Leicestershire Partnership NHS Trust,11/10/22,NURSE - BAND 2 - AGENCY,Belvoir Psychiatric Intensive Care Unit,HCL NURSING,HNSI0001150,4706.17
Department of Health,Leicestershire Partnership NHS Trust,11/10/22,NURSE - BAND 5 - AGENCY,Belvoir Psychiatric Intensive Care Unit,HCL NURSING,HNSI0001150,5101.55
Department of Health,Leicestershire Partnership NHS Trust,11/10/22,NURSE - BAND 2 - AGENCY,Bosworth Ward - Bradgate Unit,HCL NURSING,HNSI0001150,2704.94
Department of Health,Leicestershire Partnership NHS Trust,11/10/22,NURSE - BAND 5 - AGENCY,Bosworth Ward - Bradgate Unit,HCL NURSING,HNSI0001150,3704.45
Department of Health,Leicestershire Partnership NHS Trust,11/10/22,NURSE - BAND 2 - AGENCY,Cedar (Willows),HCL NURSING,HNSI0001150,1642.96
Department of Health,Leicestershire Partnership NHS Trust,11/10/22,Nurse - Band 6 -Agency,City West CMHT MHSOP,HCL NURSING,HNSI0001150,844.80
Department of Health,Leicestershire Partnership NHS Trust,11/10/22,NURSE - BAND 2 - AGENCY,Coleman Ward,HCL NURSING,HNSI0001150,24545.32
Department of Health,Leicestershire Partnership NHS Trust,11/10/22,NURSE - BAND 5 - AGENCY,Coleman Ward,HCL NURSING,HNSI0001150,5412.83
Department of Health,Leicestershire Partnership NHS Trust,11/10/22,NURSE - BAND 5 - AGENCY,Crisis Resolution,HCL NURSING,HNSI0001150,585.25
Department of Health,Leicestershire Partnership NHS Trust,11/10/22,NURSE - BAND 2 - AGENCY,Griffin Ward (HPC),HCL NURSING,HNSI0001150,8903.63
Department of Health,Leicestershire Partnership NHS Trust,11/10/22,NURSE - BAND 5 - AGENCY,Griffin Ward (HPC),HCL NURSING,HNSI0001150,2932.17
Department of Health,Leicestershire Partnership NHS Trust,11/10/22,NURSE - BAND 2 - AGENCY,Gwendolen Ward,HCL NURSING,HNSI0001150,5857.20
Department of Health,Leicestershire Partnership NHS Trust,11/10/22,NURSE - BAND 5 - AGENCY,Gwendolen Ward,HCL NURSING,HNSI0001150,779.78
Department of Health,Leicestershire Partnership NHS Trust,11/10/22,NURSE - BAND 2 - AGENCY,Heather Ward,HCL NURSING,HNSI0001150,798.67
Department of Health,Leicestershire Partnership NHS Trust,11/10/22,NURSE - BAND 5 - AGENCY,Heather Ward,HCL NURSING,HNSI0001150,2024.57
Department of Health,Leicestershire Partnership NHS Trust,11/10/22,NURSE - BAND 2 - AGENCY,Kirby Ward,HCL NURSING,HNSI0001150,6093.23
Department of Health,Leicestershire Partnership NHS Trust,11/10/22,NURSE - BAND 5 - AGENCY,Kirby Ward,HCL NURSING,HNSI0001150,2031.54
Department of Health,Leicestershire Partnership NHS Trust,11/10/22,NURSE - BAND 2 - AGENCY,Maple Ward,HCL NURSING,HNSI0001150,2818.60
Department of Health,Leicestershire Partnership NHS Trust,11/10/22,NURSE - BAND 5 - AGENCY,Maple Ward,HCL NURSING,HNSI0001150,453.80
Department of Health,Leicestershire Partnership NHS Trust,11/10/22,Nurse - Band 6 -Agency,Mental Health Liaison Team,HCL NURSING,HNSI0001150,1789.68
Department of Health,Leicestershire Partnership NHS Trust,11/10/22,NURSE - BAND 2 - AGENCY,Mill Lodge,HCL NURSING,HNSI0001150,755.48
Department of Health,Leicestershire Partnership NHS Trust,11/10/22,NURSE - BAND 5 - AGENCY,Mill Lodge,HCL NURSING,HNSI0001150,3744.71
Department of Health,Leicestershire Partnership NHS Trust,11/10/22,NURSE - BAND 2 - AGENCY,Phoenix Ward (HPC),HCL NURSING,HNSI0001150,943.56
Department of Health,Leicestershire Partnership NHS Trust,11/10/22,NURSE - BAND 5 - AGENCY,Phoenix Ward (HPC),HCL NURSING,HNSI0001150,1361.40
Department of Health,Leicestershire Partnership NHS Trust,11/10/22,NURSE - BAND 2 - AGENCY,Place Of Safety Assessment Unit,HCL NURSING,HNSI0001150,904.94
Department of Health,Leicestershire Partnership NHS Trust,11/10/22,NURSE - BAND 5 - AGENCY,Place Of Safety Assessment Unit,HCL NURSING,HNSI0001150,1911.27
Department of Health,Leicestershire Partnership NHS Trust,11/10/22,NURSE - BAND 2 - AGENCY,Stewart House,HCL NURSING,HNSI0001150,1039.69
Department of Health,Leicestershire Partnership NHS Trust,11/10/22,NURSE - BAND 5 - AGENCY,Stewart House,HCL NURSING,HNSI0001150,2256.34
Department of Health,Leicestershire Partnership NHS Trust,11/10/22,NURSE - BAND 2 - AGENCY,Sycamore (Willows),HCL NURSING,HNSI0001150,3137.43
Department of Health,Leicestershire Partnership NHS Trust,11/10/22,NURSE - BAND 5 - AGENCY,Sycamore (Willows),HCL NURSING,HNSI0001150,4240.93
Department of Health,Leicestershire Partnership NHS Trust,11/10/22,NURSE - BAND 2 - AGENCY,Thornton Ward - Bradgate Unit,HCL NURSING,HNSI0001150,894.70
Department of Health,Leicestershire Partnership NHS Trust,11/10/22,NURSE - BAND 5 - AGENCY,Thornton Ward - Bradgate Unit,HCL NURSING,HNSI0001150,520.04
Department of Health,Leicestershire Partnership NHS Trust,11/10/22,NURSE - BAND 5 - AGENCY,Welford Ward,HCL NURSING,HNSI0001150,2753.71
Department of Health,Leicestershire Partnership NHS Trust,11/10/22,NURSE - BAND 2 - AGENCY,CAMHS Inpatient Service,HCL NURSING,HNSI0001148,11917.95
Department of Health,Leicestershire Partnership NHS Trust,11/10/22,NURSE - BAND 5 - AGENCY,CAMHS Inpatient Service,HCL NURSING,HNSI0001148,8352.52
Department of Health,Leicestershire Partnership NHS Trust,11/10/22,Nurse - Band 6 -Agency,CAMHS Waiting List Monies,HCL NURSING,HNSI0001148,2573.10
Department of Health,Leicestershire Partnership NHS Trust,11/10/22,NURSE - BAND 2 - AGENCY,Langley Ward ED Inpatient Service,HCL NURSING,HNSI0001148,8917.85
Department of Health,Leicestershire Partnership NHS Trust,11/10/22,NURSE - BAND 5 - AGENCY,Langley Ward ED Inpatient Service,HCL NURSING,HNSI0001148,5374.53
Department of Health,Leicestershire Partnership NHS Trust,11/10/22,Nurse - Band 6 -Agency,CAMHS Outpatients,HCL WORKFORCE SOLUTIONS,HWSI0001383,27026.86
Department of Health,Leicestershire Partnership NHS Trust,11/10/22,NURSE - BAND 2 - AGENCY,CAMHS Inpatient Service,HCL NURSING,HNSI0001152,14403.49
Department of Health,Leicestershire Partnership NHS Trust,11/10/22,NURSE - BAND 5 - AGENCY,CAMHS Inpatient Service,HCL NURSING,HNSI0001152,3733.54
Department of Health,Leicestershire Partnership NHS Trust,11/10/22,Nurse - Band 6 -Agency,CAMHS Outpatients,HCL NURSING,HNSI0001152,5500.18
Department of Health,Leicestershire Partnership NHS Trust,11/10/22,NURSE - BAND 2 - AGENCY,Langley Ward ED Inpatient Service,HCL NURSING,HNSI0001152,4627.12
Department of Health,Leicestershire Partnership NHS Trust,11/10/22,NURSE - BAND 5 - AGENCY,Langley Ward ED Inpatient Service,HCL NURSING,HNSI0001152,4907.73
Department of Health,Leicestershire Partnership NHS Trust,11/10/22,Nurse - Band 6 -Agency,AMH - Central Access Point,HCL NURSING,HNSI0001146,2699.43
Department of Health,Leicestershire Partnership NHS Trust,11/10/22,Nurse - Band 7 - Agency,Adult County- East Leicester CMHT,HCL NURSING,HNSI0001146,2281.65
Department of Health,Leicestershire Partnership NHS Trust,11/10/22,NURSE - BAND 2 - AGENCY,Agnes Unit,HCL NURSING,HNSI0001146,14333.03
Department of Health,Leicestershire Partnership NHS Trust,11/10/22,NURSE - BAND 5 - AGENCY,Agnes Unit,HCL NURSING,HNSI0001146,23142.04
Department of Health,Leicestershire Partnership NHS Trust,11/10/22,NURSE - BAND 2 - AGENCY,Ashby Ward (Bradgate Unit),HCL NURSING,HNSI0001146,8516.59
Department of Health,Leicestershire Partnership NHS Trust,11/10/22,NURSE - BAND 5 - AGENCY,Ashby Ward (Bradgate Unit),HCL NURSING,HNSI0001146,12229.88
Department of Health,Leicestershire Partnership NHS Trust,11/10/22,NURSE - BAND 2 - AGENCY,Beaumont Ward - Bradgate Unit,HCL NURSING,HNSI0001146,2049.56
Department of Health,Leicestershire Partnership NHS Trust,11/10/22,NURSE - BAND 5 - AGENCY,Beaumont Ward - Bradgate Unit,HCL NURSING,HNSI0001146,9853.49
Department of Health,Leicestershire Partnership NHS Trust,11/10/22,NURSE - BAND 2 - AGENCY,Belvoir Psychiatric Intensive Care Unit,HCL NURSING,HNSI0001146,4888.20
Department of Health,Leicestershire Partnership NHS Trust,11/10/22,NURSE - BAND 5 - AGENCY,Belvoir Psychiatric Intensive Care Unit,HCL NURSING,HNSI0001146,6475.49
Department of Health,Leicestershire Partnership NHS Trust,11/10/22,NURSE - BAND 2 - AGENCY,Bosworth Ward - Bradgate Unit,HCL NURSING,HNSI0001146,3248.93
Department of Health,Leicestershire Partnership NHS Trust,11/10/22,NURSE - BAND 5 - AGENCY,Bosworth Ward - Bradgate Unit,HCL NURSING,HNSI0001146,6806.23
Department of Health,Leicestershire Partnership NHS Trust,11/10/22,NURSE - BAND 2 - AGENCY,Cedar (Willows),HCL NURSING,HNSI0001146,2371.87
Department of Health,Leicestershire Partnership NHS Trust,11/10/22,NURSE - BAND 5 - AGENCY,Cedar (Willows),HCL NURSING,HNSI0001146,453.80
Department of Health,Leicestershire Partnership NHS Trust,11/10/22,Nurse - Band 6 -Agency,City West CMHT MHSOP,HCL NURSING,HNSI0001146,1056.00
Department of Health,Leicestershire Partnership NHS Trust,11/10/22,NURSE - BAND 2 - AGENCY,Coleman Ward,HCL NURSING,HNSI0001146,13752.02
Department of Health,Leicestershire Partnership NHS Trust,11/10/22,NURSE - BAND 5 - AGENCY,Coleman Ward,HCL NURSING,HNSI0001146,7027.01
Department of Health,Leicestershire Partnership NHS Trust,11/10/22,NURSE - BAND 5 - AGENCY,Crisis Resolution,HCL NURSING,HNSI0001146,1521.23
Department of Health,Leicestershire Partnership NHS Trust,11/10/22,NURSE - BAND 2 - AGENCY,Griffin Ward (HPC),HCL NURSING,HNSI0001146,1400.56
Department of Health,Leicestershire Partnership NHS Trust,11/10/22,NURSE - BAND 5 - AGENCY,Griffin Ward (HPC),HCL NURSING,HNSI0001146,2554.39
Department of Health,Leicestershire Partnership NHS Trust,11/10/22,NURSE - BAND 2 - AGENCY,Gwendolen Ward,HCL NURSING,HNSI0001146,4745.93
Department of Health,Leicestershire Partnership NHS Trust,11/10/22,NURSE - BAND 5 - AGENCY,Gwendolen Ward,HCL NURSING,HNSI0001146,2819.07
Department of Health,Leicestershire Partnership NHS Trust,11/10/22,NURSE - BAND 2 - AGENCY,Heather Ward,HCL NURSING,HNSI0001146,729.21
Department of Health,Leicestershire Partnership NHS Trust,11/10/22,NURSE - BAND 5 - AGENCY,Heather Ward,HCL NURSING,HNSI0001146,8313.80
Department of Health,Leicestershire Partnership NHS Trust,11/10/22,NURSE - BAND 2 - AGENCY,Kirby Ward,HCL NURSING,HNSI0001146,4242.50
Department of Health,Leicestershire Partnership NHS Trust,11/10/22,NURSE - BAND 5 - AGENCY,Kirby Ward,HCL NURSING,HNSI0001146,1458.54
Department of Health,Leicestershire Partnership NHS Trust,11/10/22,NURSE - BAND 2 - AGENCY,Maple Ward,HCL NURSING,HNSI0001146,1325.43
Department of Health,Leicestershire Partnership NHS Trust,11/10/22,NURSE - BAND 5 - AGENCY,Maple Ward,HCL NURSING,HNSI0001146,3063.15
Department of Health,Leicestershire Partnership NHS Trust,11/10/22,Nurse - Band 6 -Agency,Mental Health Liaison Team,HCL NURSING,HNSI0001146,1789.68
Department of Health,Leicestershire Partnership NHS Trust,11/10/22,NURSE - BAND 2 - AGENCY,Mill Lodge,HCL NURSING,HNSI0001146,2646.50
Department of Health,Leicestershire Partnership NHS Trust,11/10/22,NURSE - BAND 5 - AGENCY,Mill Lodge,HCL NURSING,HNSI0001146,4722.92
Department of Health,Leicestershire Partnership NHS Trust,11/10/22,NURSE - BAND 2 - AGENCY,Phoenix Ward (HPC),HCL NURSING,HNSI0001146,1180.28
Department of Health,Leicestershire Partnership NHS Trust,11/10/22,NURSE - BAND 5 - AGENCY,Phoenix Ward (HPC),HCL NURSING,HNSI0001146,2755.07
Department of Health,Leicestershire Partnership NHS Trust,11/10/22,NURSE - BAND 2 - AGENCY,Place Of Safety Assessment Unit,HCL NURSING,HNSI0001146,1404.37
Department of Health,Leicestershire Partnership NHS Trust,11/10/22,NURSE - BAND 5 - AGENCY,Place Of Safety Assessment Unit,HCL NURSING,HNSI0001146,2977.13
Department of Health,Leicestershire Partnership NHS Trust,11/10/22,NURSE - BAND 2 - AGENCY,Stewart House,HCL NURSING,HNSI0001146,256.47
Department of Health,Leicestershire Partnership NHS Trust,11/10/22,NURSE - BAND 5 - AGENCY,Stewart House,HCL NURSING,HNSI0001146,530.69
Department of Health,Leicestershire Partnership NHS Trust,11/10/22,NURSE - BAND 2 - AGENCY,Sycamore (Willows),HCL NURSING,HNSI0001146,2722.76
Department of Health,Leicestershire Partnership NHS Trust,11/10/22,NURSE - BAND 5 - AGENCY,Sycamore (Willows),HCL NURSING,HNSI0001146,3275.12
Department of Health,Leicestershire Partnership NHS Trust,11/10/22,NURSE - BAND 2 - AGENCY,The Grange,HCL NURSING,HNSI0001146,220.49
Department of Health,Leicestershire Partnership NHS Trust,11/10/22,NURSE - BAND 2 - AGENCY,Thornton Ward - Bradgate Unit,HCL NURSING,HNSI0001146,2284.82
Department of Health,Leicestershire Partnership NHS Trust,11/10/22,NURSE - BAND 5 - AGENCY,Thornton Ward - Bradgate Unit,HCL NURSING,HNSI0001146,1992.62
Department of Health,Leicestershire Partnership NHS Trust,11/10/22,NURSE - BAND 2 - AGENCY,Welford Ward,HCL NURSING,HNSI0001146,5969.42
Department of Health,Leicestershire Partnership NHS Trust,11/10/22,NURSE - BAND 5 - AGENCY,Welford Ward,HCL NURSING,HNSI0001146,1516.87
Department of Health,Leicestershire Partnership NHS Trust,11/10/22,Nurse - Band 6 -Agency,CAMHS Outpatients,HCL WORKFORCE SOLUTIONS,HWSI0001391,22834.86
Department of Health,Leicestershire Partnership NHS Trust,13/10/22,Network Costs - WAN Maint,HIS Infrastructure,VIRGIN MEDIA BUSINESS,262421-201,42410.89
Department of Health,Leicestershire Partnership NHS Trust,13/10/22,Insurance Costs,Chief Executives Office,NHS LITIGATION AUTHORITY,SICX410337,192613.10
Department of Health,Leicestershire Partnership NHS Trust,14/10/22,Rent,Meridian (EFM Base),TRUSTEES OF WATER ROSE RETIRE FUND,004,30000.00
Department of Health,Leicestershire Partnership NHS Trust,14/10/22,WIP Project Not in BS - Buildings excl Dwellings,Work in Progress,TILBURY DOUGLAS CONSTRUCTION LTD,22100105,49843.30
Department of Health,Leicestershire Partnership NHS Trust,14/10/22,WIP Project Not in BS - Buildings excl Dwellings,Work in Progress,TILBURY DOUGLAS CONSTRUCTION LTD,22100112,48664.56
Department of Health,Leicestershire Partnership NHS Trust,14/10/22,WIP Project Not in BS - Buildings excl Dwellings,Work in Progress,TILBURY DOUGLAS CONSTRUCTION LTD,22100117,39917.36
Department of Health,Leicestershire Partnership NHS Trust,14/10/22,WIP Project Not in BS - Buildings excl Dwellings,Work in Progress,TILBURY DOUGLAS CONSTRUCTION LTD,22100120,213088.38
Department of Health,Leicestershire Partnership NHS Trust,14/10/22,Legal Fees,Chief Executives Office,BROWNE JACOBSON LLP,IN-000127957,26578.08
Department of Health,Leicestershire Partnership NHS Trust,14/10/22,NURSE - BAND 2 - AGENCY,Beechwood Ward,HCL NURSING,HNSI0001159,3457.50
Department of Health,Leicestershire Partnership NHS Trust,14/10/22,NURSE - BAND 5 - AGENCY,Beechwood Ward,HCL NURSING,HNSI0001159,1427.64
Department of Health,Leicestershire Partnership NHS Trust,14/10/22,NURSE - BAND 2 - AGENCY,CHS Surge Ward,HCL NURSING,HNSI0001159,10026.64
Department of Health,Leicestershire Partnership NHS Trust,14/10/22,NURSE - BAND 5 - AGENCY,CHS Surge Ward,HCL NURSING,HNSI0001159,7475.08
Department of Health,Leicestershire Partnership NHS Trust,14/10/22,NURSE - BAND 5 - AGENCY,City Planned Care - East,HCL NURSING,HNSI0001159,9977.71
Department of Health,Leicestershire Partnership NHS Trust,14/10/22,NURSE - BAND 5 - AGENCY,City Planned Care - West,HCL NURSING,HNSI0001159,13705.20
Department of Health,Leicestershire Partnership NHS Trust,14/10/22,NURSE - BAND 2 - AGENCY,Clarendon Ward,HCL NURSING,HNSI0001159,5949.08
Department of Health,Leicestershire Partnership NHS Trust,14/10/22,NURSE - BAND 5 - AGENCY,Clarendon Ward,HCL NURSING,HNSI0001159,2257.28
Department of Health,Leicestershire Partnership NHS Trust,14/10/22,NURSE - BAND 2 - AGENCY,Coalville Snibston Ward,HCL NURSING,HNSI0001159,4135.48
Department of Health,Leicestershire Partnership NHS Trust,14/10/22,NURSE - BAND 5 - AGENCY,Coalville Snibston Ward,HCL NURSING,HNSI0001159,1744.10
Department of Health,Leicestershire Partnership NHS Trust,14/10/22,NURSE - BAND 2 - AGENCY,Coalville Ward 2,HCL NURSING,HNSI0001159,3855.89
Department of Health,Leicestershire Partnership NHS Trust,14/10/22,NURSE - BAND 5 - AGENCY,Coalville Ward 2,HCL NURSING,HNSI0001159,5211.95
Department of Health,Leicestershire Partnership NHS Trust,14/10/22,NURSE - BAND 2 - AGENCY,Dalgliesh Ward,HCL NURSING,HNSI0001159,2684.26
Department of Health,Leicestershire Partnership NHS Trust,14/10/22,NURSE - BAND 5 - AGENCY,Dalgliesh Ward,HCL NURSING,HNSI0001159,2306.00
Department of Health,Leicestershire Partnership NHS Trust,14/10/22,NURSE - BAND 5 - AGENCY,"East Planned Care - Oadby,Wigston & Harborough",HCL NURSING,HNSI0001159,941.33
Department of Health,Leicestershire Partnership NHS Trust,14/10/22,NURSE - BAND 2 - AGENCY,H&B Comm Hosp East Ward,HCL NURSING,HNSI0001159,3904.45
Department of Health,Leicestershire Partnership NHS Trust,14/10/22,NURSE - BAND 5 - AGENCY,H&B Comm Hosp East Ward,HCL NURSING,HNSI0001159,7070.70
Department of Health,Leicestershire Partnership NHS Trust,14/10/22,NURSE - BAND 2 - AGENCY,H&B Comm Hosp North Ward,HCL NURSING,HNSI0001159,5717.23
Department of Health,Leicestershire Partnership NHS Trust,14/10/22,NURSE - BAND 5 - AGENCY,H&B Comm Hosp North Ward,HCL NURSING,HNSI0001159,584.49
Department of Health,Leicestershire Partnership NHS Trust,14/10/22,NURSE - BAND 2 - AGENCY,Lough Swithland Ward,HCL NURSING,HNSI0001159,2887.67
Department of Health,Leicestershire Partnership NHS Trust,14/10/22,NURSE - BAND 5 - AGENCY,Lough Swithland Ward,HCL NURSING,HNSI0001159,4459.26
Department of Health,Leicestershire Partnership NHS Trust,14/10/22,NURSE - BAND 2 - AGENCY,Rutland Ward Nursing,HCL NURSING,HNSI0001159,2872.99
Department of Health,Leicestershire Partnership NHS Trust,14/10/22,NURSE - BAND 5 - AGENCY,Rutland Ward Nursing,HCL NURSING,HNSI0001159,4472.08
Department of Health,Leicestershire Partnership NHS Trust,14/10/22,NURSE - BAND 2 - AGENCY,St Lukes Stroke Ward,HCL NURSING,HNSI0001159,5685.65
Department of Health,Leicestershire Partnership NHS Trust,14/10/22,NURSE - BAND 2 - AGENCY,St Lukes Ward 3,HCL NURSING,HNSI0001159,1651.01
Department of Health,Leicestershire Partnership NHS Trust,14/10/22,NURSE - BAND 5 - AGENCY,St Lukes Ward 3,HCL NURSING,HNSI0001159,954.49
Department of Health,Leicestershire Partnership NHS Trust,14/10/22,Drugs,Adult City Drugs,JANSSEN-CILAG LTD,930885426,12528.04
Department of Health,Leicestershire Partnership NHS Trust,14/10/22,Drugs,Adult County Drugs,JANSSEN-CILAG LTD,930885426,18792.06
Department of Health,Leicestershire Partnership NHS Trust,14/10/22,Drugs,Pharmacy,JANSSEN-CILAG LTD,930885426,0.00
Department of Health,Leicestershire Partnership NHS Trust,17/10/22,Nurse - Band 6 -Agency,AMH - Central Access Point,HCL WORKFORCE SOLUTIONS,HWSI0001398,7235.83
Department of Health,Leicestershire Partnership NHS Trust,17/10/22,Nurse - Band 6 -Agency,Adult County Charnwood CMHT - Loughborough Base,HCL WORKFORCE SOLUTIONS,HWSI0001398,1334.63
Department of Health,Leicestershire Partnership NHS Trust,17/10/22,Nurse - Band 6 -Agency,Crisis Resolution,HCL WORKFORCE SOLUTIONS,HWSI0001398,13737.04
Department of Health,Leicestershire Partnership NHS Trust,17/10/22,Nurse - Band 6 -Agency,AMH - Central Access Point,HCL NURSING,HNSI0001158,3473.87
Department of Health,Leicestershire Partnership NHS Trust,17/10/22,Nurse - Band 7 - Agency,Adult County- East Leicester CMHT,HCL NURSING,HNSI0001158,1402.19
Department of Health,Leicestershire Partnership NHS Trust,17/10/22,NURSE - BAND 2 - AGENCY,Agnes Unit,HCL NURSING,HNSI0001158,23752.18
Department of Health,Leicestershire Partnership NHS Trust,17/10/22,NURSE - BAND 5 - AGENCY,Agnes Unit,HCL NURSING,HNSI0001158,17603.71
Department of Health,Leicestershire Partnership NHS Trust,17/10/22,NURSE - BAND 2 - AGENCY,Ashby Ward (Bradgate Unit),HCL NURSING,HNSI0001158,9186.30
Department of Health,Leicestershire Partnership NHS Trust,17/10/22,NURSE - BAND 5 - AGENCY,Ashby Ward (Bradgate Unit),HCL NURSING,HNSI0001158,10717.04
Department of Health,Leicestershire Partnership NHS Trust,17/10/22,NURSE - BAND 2 - AGENCY,Beaumont Ward - Bradgate Unit,HCL NURSING,HNSI0001158,11033.60
Department of Health,Leicestershire Partnership NHS Trust,17/10/22,NURSE - BAND 5 - AGENCY,Beaumont Ward - Bradgate Unit,HCL NURSING,HNSI0001158,10772.33
Department of Health,Leicestershire Partnership NHS Trust,17/10/22,NURSE - BAND 2 - AGENCY,Belvoir Psychiatric Intensive Care Unit,HCL NURSING,HNSI0001158,3719.64
Department of Health,Leicestershire Partnership NHS Trust,17/10/22,NURSE - BAND 5 - AGENCY,Belvoir Psychiatric Intensive Care Unit,HCL NURSING,HNSI0001158,2079.84
Department of Health,Leicestershire Partnership NHS Trust,17/10/22,NURSE - BAND 2 - AGENCY,Bosworth Ward - Bradgate Unit,HCL NURSING,HNSI0001158,4104.28
Department of Health,Leicestershire Partnership NHS Trust,17/10/22,NURSE - BAND 5 - AGENCY,Bosworth Ward - Bradgate Unit,HCL NURSING,HNSI0001158,7237.68
Department of Health,Leicestershire Partnership NHS Trust,17/10/22,NURSE - BAND 2 - AGENCY,Cedar (Willows),HCL NURSING,HNSI0001158,2504.24
Department of Health,Leicestershire Partnership NHS Trust,17/10/22,NURSE - BAND 5 - AGENCY,Cedar (Willows),HCL NURSING,HNSI0001158,2300.89
Department of Health,Leicestershire Partnership NHS Trust,17/10/22,Nurse - Band 6 -Agency,City West CMHT MHSOP,HCL NURSING,HNSI0001158,1056.00
Department of Health,Leicestershire Partnership NHS Trust,17/10/22,NURSE - BAND 2 - AGENCY,Coleman Ward,HCL NURSING,HNSI0001158,13753.87
Department of Health,Leicestershire Partnership NHS Trust,17/10/22,NURSE - BAND 5 - AGENCY,Coleman Ward,HCL NURSING,HNSI0001158,3824.58
Department of Health,Leicestershire Partnership NHS Trust,17/10/22,NURSE - BAND 2 - AGENCY,Griffin Ward (HPC),HCL NURSING,HNSI0001158,14639.40
Department of Health,Leicestershire Partnership NHS Trust,17/10/22,NURSE - BAND 5 - AGENCY,Griffin Ward (HPC),HCL NURSING,HNSI0001158,3744.19
Department of Health,Leicestershire Partnership NHS Trust,17/10/22,NURSE - BAND 2 - AGENCY,Gwendolen Ward,HCL NURSING,HNSI0001158,3213.53
Department of Health,Leicestershire Partnership NHS Trust,17/10/22,NURSE - BAND 5 - AGENCY,Gwendolen Ward,HCL NURSING,HNSI0001158,1318.35
Department of Health,Leicestershire Partnership NHS Trust,17/10/22,NURSE - BAND 5 - AGENCY,Heather Ward,HCL NURSING,HNSI0001158,5669.44
Department of Health,Leicestershire Partnership NHS Trust,17/10/22,NURSE - BAND 2 - AGENCY,Kirby Ward,HCL NURSING,HNSI0001158,6541.05
Department of Health,Leicestershire Partnership NHS Trust,17/10/22,NURSE - BAND 5 - AGENCY,Kirby Ward,HCL NURSING,HNSI0001158,1198.18
Department of Health,Leicestershire Partnership NHS Trust,17/10/22,NURSE - BAND 2 - AGENCY,Maple Ward,HCL NURSING,HNSI0001158,3050.42
Department of Health,Leicestershire Partnership NHS Trust,17/10/22,NURSE - BAND 5 - AGENCY,Maple Ward,HCL NURSING,HNSI0001158,2007.77
Department of Health,Leicestershire Partnership NHS Trust,17/10/22,Nurse - Band 6 -Agency,Mental Health Liaison Team,HCL NURSING,HNSI0001158,1819.14
Department of Health,Leicestershire Partnership NHS Trust,17/10/22,NURSE - BAND 2 - AGENCY,Mill Lodge,HCL NURSING,HNSI0001158,1240.20
Department of Health,Leicestershire Partnership NHS Trust,17/10/22,NURSE - BAND 5 - AGENCY,Mill Lodge,HCL NURSING,HNSI0001158,2711.94
Department of Health,Leicestershire Partnership NHS Trust,17/10/22,NURSE - BAND 2 - AGENCY,Phoenix Ward (HPC),HCL NURSING,HNSI0001158,894.70
Department of Health,Leicestershire Partnership NHS Trust,17/10/22,NURSE - BAND 5 - AGENCY,Phoenix Ward (HPC),HCL NURSING,HNSI0001158,2604.84
Department of Health,Leicestershire Partnership NHS Trust,17/10/22,NURSE - BAND 2 - AGENCY,Place Of Safety Assessment Unit,HCL NURSING,HNSI0001158,2764.30
Department of Health,Leicestershire Partnership NHS Trust,17/10/22,NURSE - BAND 5 - AGENCY,Place Of Safety Assessment Unit,HCL NURSING,HNSI0001158,2350.33
Department of Health,Leicestershire Partnership NHS Trust,17/10/22,NURSE - BAND 2 - AGENCY,Stewart House,HCL NURSING,HNSI0001158,1023.18
Department of Health,Leicestershire Partnership NHS Trust,17/10/22,NURSE - BAND 5 - AGENCY,Stewart House,HCL NURSING,HNSI0001158,428.48
Department of Health,Leicestershire Partnership NHS Trust,17/10/22,NURSE - BAND 2 - AGENCY,Sycamore (Willows),HCL NURSING,HNSI0001158,3749.80
Department of Health,Leicestershire Partnership NHS Trust,17/10/22,NURSE - BAND 5 - AGENCY,Sycamore (Willows),HCL NURSING,HNSI0001158,4185.23
Department of Health,Leicestershire Partnership NHS Trust,17/10/22,NURSE - BAND 2 - AGENCY,Thornton Ward - Bradgate Unit,HCL NURSING,HNSI0001158,853.15
Department of Health,Leicestershire Partnership NHS Trust,17/10/22,NURSE - BAND 5 - AGENCY,Thornton Ward - Bradgate Unit,HCL NURSING,HNSI0001158,68.76
Department of Health,Leicestershire Partnership NHS Trust,17/10/22,NURSE - BAND 5 - AGENCY,Urgent Care Hub,HCL NURSING,HNSI0001158,520.04
Department of Health,Leicestershire Partnership NHS Trust,17/10/22,NURSE - BAND 2 - AGENCY,Watermead Ward (Bradgate Unit),HCL NURSING,HNSI0001158,207.62
Department of Health,Leicestershire Partnership NHS Trust,17/10/22,NURSE - BAND 5 - AGENCY,Watermead Ward (Bradgate Unit),HCL NURSING,HNSI0001158,30.08
Department of Health,Leicestershire Partnership NHS Trust,17/10/22,NURSE - BAND 2 - AGENCY,Welford Ward,HCL NURSING,HNSI0001158,8009.79
Department of Health,Leicestershire Partnership NHS Trust,17/10/22,NURSE - BAND 5 - AGENCY,Welford Ward,HCL NURSING,HNSI0001158,294.80
Department of Health,Leicestershire Partnership NHS Trust,17/10/22,Nurse - Band 6 -Agency,CAMHS Outpatients,HCL WORKFORCE SOLUTIONS,HWSI0001399,22439.86
Department of Health,Leicestershire Partnership NHS Trust,17/10/22,NURSE - BAND 2 - AGENCY,CAMHS Inpatient Service,HCL NURSING,HNSI0001160,11540.64
Department of Health,Leicestershire Partnership NHS Trust,17/10/22,NURSE - BAND 5 - AGENCY,CAMHS Inpatient Service,HCL NURSING,HNSI0001160,3542.86
Department of Health,Leicestershire Partnership NHS Trust,17/10/22,NURSE - BAND 2 - AGENCY,CAMHS Outpatients,HCL NURSING,HNSI0001160,244.75
Department of Health,Leicestershire Partnership NHS Trust,17/10/22,Nurse - Band 6 -Agency,CAMHS Outpatients,HCL NURSING,HNSI0001160,756.98
Department of Health,Leicestershire Partnership NHS Trust,17/10/22,NURSE - BAND 2 - AGENCY,Langley Ward ED Inpatient Service,HCL NURSING,HNSI0001160,7771.03
Department of Health,Leicestershire Partnership NHS Trust,17/10/22,NURSE - BAND 5 - AGENCY,Langley Ward ED Inpatient Service,HCL NURSING,HNSI0001160,4527.35
Department of Health,Leicestershire Partnership NHS Trust,18/10/22,Network Costs - WAN Maint,HIS Infrastructure,INSIGHT DIRECT (UK) LTD,2100383312,187659.00
Department of Health,Leicestershire Partnership NHS Trust,19/10/22,WIP Project Not in BS - Buildings excl Dwellings,Work in Progress,TILBURY DOUGLAS CONSTRUCTION LTD,22100118,41921.63
Department of Health,Leicestershire Partnership NHS Trust,19/10/22,Landline Telephone Rental / Calls,"Beaumont Leys Health Centre (P94, LPT)",VIRGIN MEDIA BUSINESS,853083001/004/1022,325.43
Department of Health,Leicestershire Partnership NHS Trust,19/10/22,Landline Telephone Rental / Calls,"Bennion Centre (including Forest Grange Day Unit) (P8, LPT)",VIRGIN MEDIA BUSINESS,853083001/004/1022,7.74
Department of Health,Leicestershire Partnership NHS Trust,19/10/22,Landline Telephone Rental / Calls,"Bradgate Unit (including Glenvale day Unit) (P7, LPT)",VIRGIN MEDIA BUSINESS,853083001/004/1022,8706.76
Department of Health,Leicestershire Partnership NHS Trust,19/10/22,Landline Telephone Rental / Calls,Braunstone Health and Social Care Centre (Part) (PROPCO),VIRGIN MEDIA BUSINESS,853083001/004/1022,1081.72
Department of Health,Leicestershire Partnership NHS Trust,19/10/22,Landline Telephone Rental / Calls,Bridge Park Plaza - First Floor (LPT),VIRGIN MEDIA BUSINESS,853083001/004/1022,2987.08
Department of Health,Leicestershire Partnership NHS Trust,19/10/22,Landline Telephone Rental / Calls,"Coalville Community Hospital (P138, LPT)",VIRGIN MEDIA BUSINESS,853083001/004/1022,1456.04
Department of Health,Leicestershire Partnership NHS Trust,19/10/22,Landline Telephone Rental / Calls,"Coalville Health Centre (P121, LPT)",VIRGIN MEDIA BUSINESS,853083001/004/1022,149.63
Department of Health,Leicestershire Partnership NHS Trust,19/10/22,Landline Telephone Rental / Calls,County Hall,VIRGIN MEDIA BUSINESS,853083001/004/1022,1527.86
Department of Health,Leicestershire Partnership NHS Trust,19/10/22,Landline Telephone Rental / Calls,Estates & Facilities Central,VIRGIN MEDIA BUSINESS,853083001/004/1022,5.53
Department of Health,Leicestershire Partnership NHS Trust,19/10/22,Landline Telephone Rental / Calls,"Evington Centre (P6, LPT)",VIRGIN MEDIA BUSINESS,853083001/004/1022,578.44
Department of Health,Leicestershire Partnership NHS Trust,19/10/22,Landline Telephone Rental / Calls,HIS,VIRGIN MEDIA BUSINESS,853083001/004/1022,2856.07
Department of Health,Leicestershire Partnership NHS Trust,19/10/22,Landline Telephone Rental / Calls,"Hawthorne Centre - Coalville (P14, LPT)",VIRGIN MEDIA BUSINESS,853083001/004/1022,544.34
Department of Health,Leicestershire Partnership NHS Trust,19/10/22,Landline Telephone Rental / Calls,"Hinckley and Bosworth Community Hospital (Sunnyside) (P133, LPT)",VIRGIN MEDIA BUSINESS,853083001/004/1022,979.96
Department of Health,Leicestershire Partnership NHS Trust,19/10/22,Landline Telephone Rental / Calls,Hood Park Leisure Centre Clinic,VIRGIN MEDIA BUSINESS,853083001/004/1022,23.22
Department of Health,Leicestershire Partnership NHS Trust,19/10/22,Landline Telephone Rental / Calls,"Hynca Lodge (P33, LPT)",VIRGIN MEDIA BUSINESS,853083001/004/1022,382.04
Department of Health,Leicestershire Partnership NHS Trust,19/10/22,Landline Telephone Rental / Calls,"Legion House, Ashby",VIRGIN MEDIA BUSINESS,853083001/004/1022,50.62
Department of Health,Leicestershire Partnership NHS Trust,19/10/22,Landline Telephone Rental / Calls,"Loughborough Hospital (P136, LPT)",VIRGIN MEDIA BUSINESS,853083001/004/1022,4431.06
Department of Health,Leicestershire Partnership NHS Trust,19/10/22,Landline Telephone Rental / Calls,Mawson House (LPT),VIRGIN MEDIA BUSINESS,853083001/004/1022,466.55
Department of Health,Leicestershire Partnership NHS Trust,19/10/22,Landline Telephone Rental / Calls,Merlyn Vaz Centre (CHP),VIRGIN MEDIA BUSINESS,853083001/004/1022,1307.51
Department of Health,Leicestershire Partnership NHS Trust,19/10/22,Landline Telephone Rental / Calls,"Mett Centre (P49, LPT)",VIRGIN MEDIA BUSINESS,853083001/004/1022,95.74
Department of Health,Leicestershire Partnership NHS Trust,19/10/22,Landline Telephone Rental / Calls,NSPCC Training Cente,VIRGIN MEDIA BUSINESS,853083001/004/1022,159.96
Department of Health,Leicestershire Partnership NHS Trust,19/10/22,Landline Telephone Rental / Calls,New Parks Health Centre (PROPCO),VIRGIN MEDIA BUSINESS,853083001/004/1022,1586.78
Department of Health,Leicestershire Partnership NHS Trust,19/10/22,Landline Telephone Rental / Calls,"OSL House (P54, LPT)",VIRGIN MEDIA BUSINESS,853083001/004/1022,955.14
Department of Health,Leicestershire Partnership NHS Trust,19/10/22,Landline Telephone Rental / Calls,"Orchard Resource Centre (P15, LPT)",VIRGIN MEDIA BUSINESS,853083001/004/1022,629.50
Department of Health,Leicestershire Partnership NHS Trust,19/10/22,Landline Telephone Rental / Calls,Pasley Road Health Centre (PROPCO),VIRGIN MEDIA BUSINESS,853083001/004/1022,123.80
Department of Health,Leicestershire Partnership NHS Trust,19/10/22,Landline Telephone Rental / Calls,"Prince Philip House (P96, LPT)",VIRGIN MEDIA BUSINESS,853083001/004/1022,1482.61
Department of Health,Leicestershire Partnership NHS Trust,19/10/22,Landline Telephone Rental / Calls,Rushey Mead Health Centre (PROPCO),VIRGIN MEDIA BUSINESS,853083001/004/1022,72.29
Department of Health,Leicestershire Partnership NHS Trust,19/10/22,Landline Telephone Rental / Calls,"Shepshed Health Centre (P123, LPT)",VIRGIN MEDIA BUSINESS,853083001/004/1022,7.75
Department of Health,Leicestershire Partnership NHS Trust,19/10/22,Landline Telephone Rental / Calls,"Springfield Road Health Centre (P92, LPT)",VIRGIN MEDIA BUSINESS,853083001/004/1022,341.11
Department of Health,Leicestershire Partnership NHS Trust,19/10/22,Landline Telephone Rental / Calls,"St Peters Health Center (Part 1st and 2nd floors) (P66, LPT)",VIRGIN MEDIA BUSINESS,853083001/004/1022,1699.61
Department of Health,Leicestershire Partnership NHS Trust,19/10/22,Landline Telephone Rental / Calls,"Swithland House - London Road 352 (P44, LPT)",VIRGIN MEDIA BUSINESS,853083001/004/1022,260.71
Department of Health,Leicestershire Partnership NHS Trust,19/10/22,Landline Telephone Rental / Calls,"The Cedars (P19, LPT)",VIRGIN MEDIA BUSINESS,853083001/004/1022,738.58
Department of Health,Leicestershire Partnership NHS Trust,19/10/22,Landline Telephone Rental / Calls,"The Willows - Cordelia Close (P22, LPT)",VIRGIN MEDIA BUSINESS,853083001/004/1022,492.92
Department of Health,Leicestershire Partnership NHS Trust,19/10/22,Landline Telephone Rental / Calls,"Valentine Centre (P3, LPT)",VIRGIN MEDIA BUSINESS,853083001/004/1022,1712.00
Department of Health,Leicestershire Partnership NHS Trust,19/10/22,Landline Telephone Rental / Calls,Warren Park Way 25 (PROPCO),VIRGIN MEDIA BUSINESS,853083001/004/1022,721.72
Department of Health,Leicestershire Partnership NHS Trust,19/10/22,Landline Telephone Rental / Calls,"Westcotes Group -Westcotes House (P78, LPT)",VIRGIN MEDIA BUSINESS,853083001/004/1022,1329.01
Department of Health,Leicestershire Partnership NHS Trust,19/10/22,Landline Telephone Rental / Calls,"Winstanley Drive Health Centre (P8, LPT)",VIRGIN MEDIA BUSINESS,853083001/004/1022,422.32
Department of Health,Leicestershire Partnership NHS Trust,19/10/22,Med GP Trainees,Medical Trainees,ST.HELENS & KNOWSLEY NHS TRUST,16817141,75000.00
Department of Health,Leicestershire Partnership NHS Trust,20/10/22,Photocopying,Estates & Facilities Central,LEXMARK INTERNATIONAL LTD,900650304198,34698.07
Department of Health,Leicestershire Partnership NHS Trust,20/10/22,Water & Sewerage Charges,"Beaumont Leys Health Centre (P94, LPT)",WATER PLUS,0865005329/INV00092053,125.77
Department of Health,Leicestershire Partnership NHS Trust,20/10/22,Water & Sewerage Charges,Bridge Park Road (Unit C18) (LPT),WATER PLUS,0865005329/INV00092053,27.50
Department of Health,Leicestershire Partnership NHS Trust,20/10/22,Water & Sewerage Charges,"Bridge Park Road - Units 2 and 3 (P148, LPT)",WATER PLUS,0865005329/INV00092053,933.54
Department of Health,Leicestershire Partnership NHS Trust,20/10/22,Water & Sewerage Charges,"Coalville Community Hospital (P138, LPT)",WATER PLUS,0865005329/INV00092053,31663.84
Department of Health,Leicestershire Partnership NHS Trust,20/10/22,Water & Sewerage Charges,"Coalville Health Centre (P121, LPT)",WATER PLUS,0865005329/INV00092053,254.63
Department of Health,Leicestershire Partnership NHS Trust,20/10/22,Water & Sewerage Charges,"Evington Centre (P6, LPT)",WATER PLUS,0865005329/INV00092053,3342.37
Department of Health,Leicestershire Partnership NHS Trust,20/10/22,Water & Sewerage Charges,"Feilding Palmer Hospital (Lutterworth) (P131, LPT)",WATER PLUS,0865005329/INV00092053,27.76
Department of Health,Leicestershire Partnership NHS Trust,20/10/22,Water & Sewerage Charges,HIS,WATER PLUS,0865005329/INV00092053,66.59
Department of Health,Leicestershire Partnership NHS Trust,20/10/22,Water & Sewerage Charges,Hinckley & District Hospital (PROPCO),WATER PLUS,0865005329/INV00092053,56.33
Department of Health,Leicestershire Partnership NHS Trust,20/10/22,Water & Sewerage Charges,"Hinckley and Bosworth Community Hospital (Sunnyside) (P133, LPT)",WATER PLUS,0865005329/INV00092053,1652.00
Department of Health,Leicestershire Partnership NHS Trust,20/10/22,Water & Sewerage Charges,"Hynca Lodge (P33, LPT)",WATER PLUS,0865005329/INV00092053,158.98
Department of Health,Leicestershire Partnership NHS Trust,20/10/22,Water & Sewerage Charges,Linnaeus Nursery - Cordelia Close,WATER PLUS,0865005329/INV00092053,869.05
Department of Health,Leicestershire Partnership NHS Trust,20/10/22,Water & Sewerage Charges,"Loughborough Hospital (P136, LPT)",WATER PLUS,0865005329/INV00092053,3071.73
Department of Health,Leicestershire Partnership NHS Trust,20/10/22,Water & Sewerage Charges,"Narborough Health Centre (P117, LPT)",WATER PLUS,0865005329/INV00092053,81.14
Department of Health,Leicestershire Partnership NHS Trust,20/10/22,Water & Sewerage Charges,"OSL House (P54, LPT)",WATER PLUS,0865005329/INV00092053,280.10
Department of Health,Leicestershire Partnership NHS Trust,20/10/22,Water & Sewerage Charges,"Orchard Resource Centre (P15, LPT)",WATER PLUS,0865005329/INV00092053,383.39
Department of Health,Leicestershire Partnership NHS Trust,20/10/22,Water & Sewerage Charges,"Prince Philip House (P96, LPT)",WATER PLUS,0865005329/INV00092053,208.71
Department of Health,Leicestershire Partnership NHS Trust,20/10/22,Water & Sewerage Charges,Rothesay -  London Road 352A (LPT),WATER PLUS,0865005329/INV00092053,296.05
Department of Health,Leicestershire Partnership NHS Trust,20/10/22,Water & Sewerage Charges,"Rutland Memorial Hospital (P134, LPT)",WATER PLUS,0865005329/INV00092053,149.44
Department of Health,Leicestershire Partnership NHS Trust,20/10/22,Water & Sewerage Charges,"Shepshed Health Centre (P123, LPT)",WATER PLUS,0865005329/INV00092053,258.02
Department of Health,Leicestershire Partnership NHS Trust,20/10/22,Water & Sewerage Charges,"Springfield Road Health Centre (P92, LPT)",WATER PLUS,0865005329/INV00092053,234.82
Department of Health,Leicestershire Partnership NHS Trust,20/10/22,Water & Sewerage Charges,"Stewart House (P61, LPT)",WATER PLUS,0865005329/INV00092053,1032.53
Department of Health,Leicestershire Partnership NHS Trust,20/10/22,Water & Sewerage Charges,"Swithland House - London Road 352 (P44, LPT)",WATER PLUS,0865005329/INV00092053,98.12
Department of Health,Leicestershire Partnership NHS Trust,20/10/22,Water & Sewerage Charges,"The Agnes Unit (AKA Assessment and Treatment Centre) (P85, LPT)",WATER PLUS,0865005329/INV00092053,779.86
Department of Health,Leicestershire Partnership NHS Trust,20/10/22,Water & Sewerage Charges,"The Cedars (P19, LPT)",WATER PLUS,0865005329/INV00092053,77.91
Department of Health,Leicestershire Partnership NHS Trust,20/10/22,Water & Sewerage Charges,"The Grange 1 (P4, LPT)",WATER PLUS,0865005329/INV00092053,41.65
Department of Health,Leicestershire Partnership NHS Trust,20/10/22,Water & Sewerage Charges,"The Grange 2 (P41, LPT)",WATER PLUS,0865005329/INV00092053,64.28
Department of Health,Leicestershire Partnership NHS Trust,20/10/22,Water & Sewerage Charges,"The Willows - Cordelia Close (P22, LPT)",WATER PLUS,0865005329/INV00092053,1520.78
Department of Health,Leicestershire Partnership NHS Trust,20/10/22,Water & Sewerage Charges,"Westcotes Group -Westcotes House (P78, LPT)",WATER PLUS,0865005329/INV00092053,79.99
Department of Health,Leicestershire Partnership NHS Trust,20/10/22,Water & Sewerage Charges,Westcotes Group – Artemis House,WATER PLUS,0865005329/INV00092053,177.61
Department of Health,Leicestershire Partnership NHS Trust,20/10/22,HR / Payroll Services,Chief Executives Office,SEYMOUR JOHN PUB SERV LTD,INV-P200420,34452.00
Department of Health,Leicestershire Partnership NHS Trust,21/10/22,Nurse - Band 6 -Agency,AMH - Central Access Point,HCL NURSING,HNSI0001162,2444.09
Department of Health,Leicestershire Partnership NHS Trust,21/10/22,Nurse - Band 7 - Agency,Adult County- East Leicester CMHT,HCL NURSING,HNSI0001162,1383.38
Department of Health,Leicestershire Partnership NHS Trust,21/10/22,NURSE - BAND 2 - AGENCY,Agnes Unit,HCL NURSING,HNSI0001162,18978.99
Department of Health,Leicestershire Partnership NHS Trust,21/10/22,NURSE - BAND 5 - AGENCY,Agnes Unit,HCL NURSING,HNSI0001162,16974.08
Department of Health,Leicestershire Partnership NHS Trust,21/10/22,NURSE - BAND 2 - AGENCY,Ashby Ward (Bradgate Unit),HCL NURSING,HNSI0001162,11141.80
Department of Health,Leicestershire Partnership NHS Trust,21/10/22,NURSE - BAND 5 - AGENCY,Ashby Ward (Bradgate Unit),HCL NURSING,HNSI0001162,10717.12
Department of Health,Leicestershire Partnership NHS Trust,21/10/22,NURSE - BAND 2 - AGENCY,Beaumont Ward - Bradgate Unit,HCL NURSING,HNSI0001162,6245.18
Department of Health,Leicestershire Partnership NHS Trust,21/10/22,NURSE - BAND 5 - AGENCY,Beaumont Ward - Bradgate Unit,HCL NURSING,HNSI0001162,12004.82
Department of Health,Leicestershire Partnership NHS Trust,21/10/22,NURSE - BAND 2 - AGENCY,Belvoir Psychiatric Intensive Care Unit,HCL NURSING,HNSI0001162,4107.01
Department of Health,Leicestershire Partnership NHS Trust,21/10/22,NURSE - BAND 5 - AGENCY,Belvoir Psychiatric Intensive Care Unit,HCL NURSING,HNSI0001162,7327.30
Department of Health,Leicestershire Partnership NHS Trust,21/10/22,NURSE - BAND 2 - AGENCY,Bosworth Ward - Bradgate Unit,HCL NURSING,HNSI0001162,1887.44
Department of Health,Leicestershire Partnership NHS Trust,21/10/22,NURSE - BAND 5 - AGENCY,Bosworth Ward - Bradgate Unit,HCL NURSING,HNSI0001162,5835.57
Department of Health,Leicestershire Partnership NHS Trust,21/10/22,NURSE - BAND 2 - AGENCY,Cedar (Willows),HCL NURSING,HNSI0001162,1721.00
Department of Health,Leicestershire Partnership NHS Trust,21/10/22,NURSE - BAND 5 - AGENCY,Cedar (Willows),HCL NURSING,HNSI0001162,2923.48
Department of Health,Leicestershire Partnership NHS Trust,21/10/22,Nurse - Band 6 -Agency,City West CMHT MHSOP,HCL NURSING,HNSI0001162,1056.00
Department of Health,Leicestershire Partnership NHS Trust,21/10/22,NURSE - BAND 2 - AGENCY,Coleman Ward,HCL NURSING,HNSI0001162,7075.96
Department of Health,Leicestershire Partnership NHS Trust,21/10/22,NURSE - BAND 5 - AGENCY,Coleman Ward,HCL NURSING,HNSI0001162,4582.24
Department of Health,Leicestershire Partnership NHS Trust,21/10/22,NURSE - BAND 5 - AGENCY,Crisis Resolution,HCL NURSING,HNSI0001162,652.11
Department of Health,Leicestershire Partnership NHS Trust,21/10/22,NURSE - BAND 2 - AGENCY,Griffin Ward (HPC),HCL NURSING,HNSI0001162,3690.42
Department of Health,Leicestershire Partnership NHS Trust,21/10/22,NURSE - BAND 5 - AGENCY,Griffin Ward (HPC),HCL NURSING,HNSI0001162,5779.38
Department of Health,Leicestershire Partnership NHS Trust,21/10/22,NURSE - BAND 2 - AGENCY,Gwendolen Ward,HCL NURSING,HNSI0001162,7167.72
Department of Health,Leicestershire Partnership NHS Trust,21/10/22,NURSE - BAND 5 - AGENCY,Gwendolen Ward,HCL NURSING,HNSI0001162,1968.40
Department of Health,Leicestershire Partnership NHS Trust,21/10/22,NURSE - BAND 2 - AGENCY,Heather Ward,HCL NURSING,HNSI0001162,1204.65
Department of Health,Leicestershire Partnership NHS Trust,21/10/22,NURSE - BAND 5 - AGENCY,Heather Ward,HCL NURSING,HNSI0001162,6902.83
Department of Health,Leicestershire Partnership NHS Trust,21/10/22,NURSE - BAND 2 - AGENCY,Kirby Ward,HCL NURSING,HNSI0001162,5207.99
Department of Health,Leicestershire Partnership NHS Trust,21/10/22,NURSE - BAND 5 - AGENCY,Kirby Ward,HCL NURSING,HNSI0001162,811.04
Department of Health,Leicestershire Partnership NHS Trust,21/10/22,NURSE - BAND 2 - AGENCY,Maple Ward,HCL NURSING,HNSI0001162,2625.82
Department of Health,Leicestershire Partnership NHS Trust,21/10/22,NURSE - BAND 5 - AGENCY,Maple Ward,HCL NURSING,HNSI0001162,894.94
Department of Health,Leicestershire Partnership NHS Trust,21/10/22,Nurse - Band 6 -Agency,Mental Health Liaison Team,HCL NURSING,HNSI0001162,1789.68
Department of Health,Leicestershire Partnership NHS Trust,21/10/22,NURSE - BAND 2 - AGENCY,Mill Lodge,HCL NURSING,HNSI0001162,2716.76
Department of Health,Leicestershire Partnership NHS Trust,21/10/22,NURSE - BAND 5 - AGENCY,Mill Lodge,HCL NURSING,HNSI0001162,5228.82
Department of Health,Leicestershire Partnership NHS Trust,21/10/22,NURSE - BAND 2 - AGENCY,Phoenix Ward (HPC),HCL NURSING,HNSI0001162,2547.69
Department of Health,Leicestershire Partnership NHS Trust,21/10/22,NURSE - BAND 5 - AGENCY,Phoenix Ward (HPC),HCL NURSING,HNSI0001162,2722.79
Department of Health,Leicestershire Partnership NHS Trust,21/10/22,NURSE - BAND 2 - AGENCY,Place Of Safety Assessment Unit,HCL NURSING,HNSI0001162,985.66
Department of Health,Leicestershire Partnership NHS Trust,21/10/22,NURSE - BAND 5 - AGENCY,Place Of Safety Assessment Unit,HCL NURSING,HNSI0001162,1704.90
Department of Health,Leicestershire Partnership NHS Trust,21/10/22,NURSE - BAND 2 - AGENCY,Stewart House,HCL NURSING,HNSI0001162,272.88
Department of Health,Leicestershire Partnership NHS Trust,21/10/22,NURSE - BAND 5 - AGENCY,Stewart House,HCL NURSING,HNSI0001162,869.24
Department of Health,Leicestershire Partnership NHS Trust,21/10/22,NURSE - BAND 2 - AGENCY,Sycamore (Willows),HCL NURSING,HNSI0001162,2688.25
Department of Health,Leicestershire Partnership NHS Trust,21/10/22,NURSE - BAND 5 - AGENCY,Sycamore (Willows),HCL NURSING,HNSI0001162,5194.64
Department of Health,Leicestershire Partnership NHS Trust,21/10/22,NURSE - BAND 2 - AGENCY,Thornton Ward - Bradgate Unit,HCL NURSING,HNSI0001162,1016.72
Department of Health,Leicestershire Partnership NHS Trust,21/10/22,NURSE - BAND 5 - AGENCY,Thornton Ward - Bradgate Unit,HCL NURSING,HNSI0001162,332.86
Department of Health,Leicestershire Partnership NHS Trust,21/10/22,NURSE - BAND 2 - AGENCY,Watermead Ward (Bradgate Unit),HCL NURSING,HNSI0001162,207.62
Department of Health,Leicestershire Partnership NHS Trust,21/10/22,NURSE - BAND 2 - AGENCY,Welford Ward,HCL NURSING,HNSI0001162,8088.03
Department of Health,Leicestershire Partnership NHS Trust,21/10/22,NURSE - BAND 5 - AGENCY,Welford Ward,HCL NURSING,HNSI0001162,1112.37
Department of Health,Leicestershire Partnership NHS Trust,21/10/22,Nurse - Band 6 -Agency,CAMHS Outpatients,HCL WORKFORCE SOLUTIONS,HWSI0001411,25511.45
Department of Health,Leicestershire Partnership NHS Trust,21/10/22,NURSE - BAND 2 - AGENCY,CAMHS Inpatient Service,HCL NURSING,HNSI0001164,12696.95
Department of Health,Leicestershire Partnership NHS Trust,21/10/22,NURSE - BAND 5 - AGENCY,CAMHS Inpatient Service,HCL NURSING,HNSI0001164,7247.70
Department of Health,Leicestershire Partnership NHS Trust,21/10/22,Nurse - Band 6 -Agency,CAMHS Outpatients,HCL NURSING,HNSI0001164,10387.84
Department of Health,Leicestershire Partnership NHS Trust,21/10/22,NURSE - BAND 2 - AGENCY,Langley Ward ED Inpatient Service,HCL NURSING,HNSI0001164,3069.55
Department of Health,Leicestershire Partnership NHS Trust,21/10/22,NURSE - BAND 5 - AGENCY,Langley Ward ED Inpatient Service,HCL NURSING,HNSI0001164,1887.74
Department of Health,Leicestershire Partnership NHS Trust,24/10/22,Crs_NHS_LT1y -Resus Inventory Supplied.,Balance Sheet Collection,SUPPLY CHAIN CO LTD,1123157192,28432.24
Department of Health,Leicestershire Partnership NHS Trust,24/10/22,NURSE - BAND 2 - AGENCY,Beechwood Ward,HCL NURSING,HNSI0001163,3128.88
Department of Health,Leicestershire Partnership NHS Trust,24/10/22,NURSE - BAND 5 - AGENCY,Beechwood Ward,HCL NURSING,HNSI0001163,5762.30
Department of Health,Leicestershire Partnership NHS Trust,24/10/22,NURSE - BAND 2 - AGENCY,CHS Surge Ward,HCL NURSING,HNSI0001163,10148.32
Department of Health,Leicestershire Partnership NHS Trust,24/10/22,NURSE - BAND 5 - AGENCY,CHS Surge Ward,HCL NURSING,HNSI0001163,7695.31
Department of Health,Leicestershire Partnership NHS Trust,24/10/22,NURSE - BAND 5 - AGENCY,City Planned Care - East,HCL NURSING,HNSI0001163,9100.14
Department of Health,Leicestershire Partnership NHS Trust,24/10/22,NURSE - BAND 5 - AGENCY,City Planned Care - West,HCL NURSING,HNSI0001163,9467.07
Department of Health,Leicestershire Partnership NHS Trust,24/10/22,NURSE - BAND 2 - AGENCY,Clarendon Ward,HCL NURSING,HNSI0001163,3397.36
Department of Health,Leicestershire Partnership NHS Trust,24/10/22,NURSE - BAND 5 - AGENCY,Clarendon Ward,HCL NURSING,HNSI0001163,5353.66
Department of Health,Leicestershire Partnership NHS Trust,24/10/22,NURSE - BAND 2 - AGENCY,Coalville Snibston Ward,HCL NURSING,HNSI0001163,3310.61
Department of Health,Leicestershire Partnership NHS Trust,24/10/22,NURSE - BAND 5 - AGENCY,Coalville Snibston Ward,HCL NURSING,HNSI0001163,2104.93
Department of Health,Leicestershire Partnership NHS Trust,24/10/22,NURSE - BAND 2 - AGENCY,Coalville Ward 2,HCL NURSING,HNSI0001163,5186.39
Department of Health,Leicestershire Partnership NHS Trust,24/10/22,NURSE - BAND 5 - AGENCY,Coalville Ward 2,HCL NURSING,HNSI0001163,3614.73
Department of Health,Leicestershire Partnership NHS Trust,24/10/22,NURSE - BAND 2 - AGENCY,Dalgliesh Ward,HCL NURSING,HNSI0001163,2065.11
Department of Health,Leicestershire Partnership NHS Trust,24/10/22,NURSE - BAND 5 - AGENCY,Dalgliesh Ward,HCL NURSING,HNSI0001163,1894.41
Department of Health,Leicestershire Partnership NHS Trust,24/10/22,NURSE - BAND 5 - AGENCY,"East Planned Care - Oadby,Wigston & Harborough",HCL NURSING,HNSI0001163,1289.34
Department of Health,Leicestershire Partnership NHS Trust,24/10/22,NURSE - BAND 2 - AGENCY,H&B Comm Hosp East Ward,HCL NURSING,HNSI0001163,2036.07
Department of Health,Leicestershire Partnership NHS Trust,24/10/22,NURSE - BAND 5 - AGENCY,H&B Comm Hosp East Ward,HCL NURSING,HNSI0001163,4036.58
Department of Health,Leicestershire Partnership NHS Trust,24/10/22,NURSE - BAND 2 - AGENCY,H&B Comm Hosp North Ward,HCL NURSING,HNSI0001163,3900.48
Department of Health,Leicestershire Partnership NHS Trust,24/10/22,NURSE - BAND 5 - AGENCY,H&B Comm Hosp North Ward,HCL NURSING,HNSI0001163,3014.13
Department of Health,Leicestershire Partnership NHS Trust,24/10/22,NURSE - BAND 2 - AGENCY,Lough Swithland Ward,HCL NURSING,HNSI0001163,1452.83
Department of Health,Leicestershire Partnership NHS Trust,24/10/22,NURSE - BAND 5 - AGENCY,Lough Swithland Ward,HCL NURSING,HNSI0001163,3157.06
Department of Health,Leicestershire Partnership NHS Trust,24/10/22,NURSE - BAND 2 - AGENCY,Rutland Ward Nursing,HCL NURSING,HNSI0001163,3476.09
Department of Health,Leicestershire Partnership NHS Trust,24/10/22,NURSE - BAND 5 - AGENCY,Rutland Ward Nursing,HCL NURSING,HNSI0001163,4125.71
Department of Health,Leicestershire Partnership NHS Trust,24/10/22,NURSE - BAND 2 - AGENCY,St Lukes Stroke Ward,HCL NURSING,HNSI0001163,2893.30
Department of Health,Leicestershire Partnership NHS Trust,24/10/22,NURSE - BAND 5 - AGENCY,St Lukes Stroke Ward,HCL NURSING,HNSI0001163,373.74
Department of Health,Leicestershire Partnership NHS Trust,24/10/22,NURSE - BAND 2 - AGENCY,St Lukes Ward 3,HCL NURSING,HNSI0001163,1600.25
Department of Health,Leicestershire Partnership NHS Trust,25/10/22,Gas,"Beaumont Leys Health Centre (P94, LPT)",TOTAL GAS & POWER LTD,280280258/22,736.34
Department of Health,Leicestershire Partnership NHS Trust,25/10/22,Gas,"Bennion Centre (including Forest Grange Day Unit) (P8, LPT)",TOTAL GAS & POWER LTD,280280258/22,11659.33
Department of Health,Leicestershire Partnership NHS Trust,25/10/22,Gas,"Bradgate Unit (including Glenvale day Unit) (P7, LPT)",TOTAL GAS & POWER LTD,280280258/22,17896.15
Department of Health,Leicestershire Partnership NHS Trust,25/10/22,Gas,Bridge Park Plaza - First Floor (LPT),TOTAL GAS & POWER LTD,280280258/22,1596.02
Department of Health,Leicestershire Partnership NHS Trust,25/10/22,Gas,"Bridge Park Road - Units 2 and 3 (P148, LPT)",TOTAL GAS & POWER LTD,280280258/22,190.25
Department of Health,Leicestershire Partnership NHS Trust,25/10/22,Gas,"Coalville Community Hospital (P138, LPT)",TOTAL GAS & POWER LTD,280280258/22,10423.30
Department of Health,Leicestershire Partnership NHS Trust,25/10/22,Gas,"Coalville Health Centre (P121, LPT)",TOTAL GAS & POWER LTD,280280258/22,685.01
Department of Health,Leicestershire Partnership NHS Trust,25/10/22,Gas,"Evington Centre (P6, LPT)",TOTAL GAS & POWER LTD,280280258/22,1351.44
Department of Health,Leicestershire Partnership NHS Trust,25/10/22,Gas,"Farm Lodge (P34, LPT)",TOTAL GAS & POWER LTD,280280258/22,127.24
Department of Health,Leicestershire Partnership NHS Trust,25/10/22,Gas,"Feilding Palmer Hospital (Lutterworth) (P131, LPT)",TOTAL GAS & POWER LTD,280280258/22,2215.66
Department of Health,Leicestershire Partnership NHS Trust,25/10/22,Gas,"Frith Cottages 3 & 4 (P36, LPT)",TOTAL GAS & POWER LTD,280280258/22,163.61
Department of Health,Leicestershire Partnership NHS Trust,25/10/22,Gas,HIS,TOTAL GAS & POWER LTD,280280258/22,100.12
Department of Health,Leicestershire Partnership NHS Trust,25/10/22,Gas,"Hawthorne Centre - Coalville (P14, LPT)",TOTAL GAS & POWER LTD,280280258/22,491.78
Department of Health,Leicestershire Partnership NHS Trust,25/10/22,Gas,"Hinckley and Bosworth Community Hospital (Sunnyside) (P133, LPT)",TOTAL GAS & POWER LTD,280280258/22,7038.97
Department of Health,Leicestershire Partnership NHS Trust,25/10/22,Gas,"Hynca Lodge (P33, LPT)",TOTAL GAS & POWER LTD,280280258/22,286.42
Department of Health,Leicestershire Partnership NHS Trust,25/10/22,Gas,"LGH - Gwendolen House (P4, LPT)",TOTAL GAS & POWER LTD,280280258/22,-323.76
Department of Health,Leicestershire Partnership NHS Trust,25/10/22,Gas,"Loughborough Hospital (P136, LPT)",TOTAL GAS & POWER LTD,280280258/22,17054.94
Department of Health,Leicestershire Partnership NHS Trust,25/10/22,Gas,Mawson House (LPT),TOTAL GAS & POWER LTD,280280258/22,407.68
Department of Health,Leicestershire Partnership NHS Trust,25/10/22,Gas,"Mett Centre (P49, LPT)",TOTAL GAS & POWER LTD,280280258/22,342.91
Department of Health,Leicestershire Partnership NHS Trust,25/10/22,Gas,"Narborough Health Centre (P117, LPT)",TOTAL GAS & POWER LTD,280280258/22,522.97
Department of Health,Leicestershire Partnership NHS Trust,25/10/22,Gas,"Neville Centre - LGH (was DSC) (P147, LPT)",TOTAL GAS & POWER LTD,280280258/22,987.76
Department of Health,Leicestershire Partnership NHS Trust,25/10/22,Gas,"OSL House (P54, LPT)",TOTAL GAS & POWER LTD,280280258/22,684.60
Department of Health,Leicestershire Partnership NHS Trust,25/10/22,Gas,"Orchard Resource Centre (P15, LPT)",TOTAL GAS & POWER LTD,280280258/22,402.01
Department of Health,Leicestershire Partnership NHS Trust,25/10/22,Gas,"Rutland Memorial Hospital (P134, LPT)",TOTAL GAS & POWER LTD,280280258/22,4586.64
Department of Health,Leicestershire Partnership NHS Trust,25/10/22,Gas,"Shepshed Health Centre (P123, LPT)",TOTAL GAS & POWER LTD,280280258/22,655.73
Department of Health,Leicestershire Partnership NHS Trust,25/10/22,Gas,"Springfield Road Health Centre (P92, LPT)",TOTAL GAS & POWER LTD,280280258/22,327.87
Department of Health,Leicestershire Partnership NHS Trust,25/10/22,Gas,"Stewart House (P61, LPT)",TOTAL GAS & POWER LTD,280280258/22,3611.80
Department of Health,Leicestershire Partnership NHS Trust,25/10/22,Gas,"Swithland House - London Road 352 (P44, LPT)",TOTAL GAS & POWER LTD,280280258/22,994.74
Department of Health,Leicestershire Partnership NHS Trust,25/10/22,Gas,"The Agnes Unit (AKA Assessment and Treatment Centre) (P85, LPT)",TOTAL GAS & POWER LTD,280280258/22,4979.18
Department of Health,Leicestershire Partnership NHS Trust,25/10/22,Gas,The Beacon,TOTAL GAS & POWER LTD,280280258/22,1159.52
Department of Health,Leicestershire Partnership NHS Trust,25/10/22,Gas,"The Cedars (P19, LPT)",TOTAL GAS & POWER LTD,280280258/22,195.39
Department of Health,Leicestershire Partnership NHS Trust,25/10/22,Gas,"The Grange 1 (P4, LPT)",TOTAL GAS & POWER LTD,280280258/22,259.28
Department of Health,Leicestershire Partnership NHS Trust,25/10/22,Gas,"The Grange 2 (P41, LPT)",TOTAL GAS & POWER LTD,280280258/22,130.35
Department of Health,Leicestershire Partnership NHS Trust,25/10/22,Gas,"The Willows - Cordelia Close (P22, LPT)",TOTAL GAS & POWER LTD,280280258/22,2968.02
Department of Health,Leicestershire Partnership NHS Trust,25/10/22,Gas,"Valentine Centre (P3, LPT)",TOTAL GAS & POWER LTD,280280258/22,2146.78
Department of Health,Leicestershire Partnership NHS Trust,25/10/22,Gas,"Westcotes Group -Westcotes House (P78, LPT)",TOTAL GAS & POWER LTD,280280258/22,1355.34
Department of Health,Leicestershire Partnership NHS Trust,25/10/22,Gas,"Winstanley Drive Health Centre (P8, LPT)",TOTAL GAS & POWER LTD,280280258/22,613.54
Department of Health,Leicestershire Partnership NHS Trust,28/10/22,Leased / Hired Vehicles,Autism,LEASEPLAN,510570101,638.96
Department of Health,Leicestershire Partnership NHS Trust,28/10/22,Prep_ LT1y -Prepayments Lease Cars,Balance Sheet Collection,LEASEPLAN,510570101,21402.96
Department of Health,Leicestershire Partnership NHS Trust,28/10/22,Trade_Drs_LT1y -Lease Cars Invoicing Contrl Ac.,Balance Sheet Collection,LEASEPLAN,510570101,535.75
Department of Health,Leicestershire Partnership NHS Trust,28/10/22,VAT_Drs _ LT1y -VAT Contracted Out Services Input Tax,Balance Sheet Collection,LEASEPLAN,510570101,73.54
Department of Health,Leicestershire Partnership NHS Trust,28/10/22,Leased / Hired Vehicles,COVID 19,LEASEPLAN,510570101,472.36
Department of Health,Leicestershire Partnership NHS Trust,28/10/22,Leased / Hired Vehicles,City Planned Care - West,LEASEPLAN,510570101,15.00
Department of Health,Leicestershire Partnership NHS Trust,28/10/22,Leased / Hired Vehicles,HIS Infrastructure,LEASEPLAN,510570101,10.00
Department of Health,Leicestershire Partnership NHS Trust,28/10/22,Leased / Hired Vehicles,Integrated Care Service - Rutland,LEASEPLAN,510570101,20.00
Department of Health,Leicestershire Partnership NHS Trust,28/10/22,Leased / Hired Vehicles,PIER Team - Early Intervention Services,LEASEPLAN,510570101,564.46
Department of Health,Leicestershire Partnership NHS Trust,28/10/22,Leased / Hired Vehicles,School Age Immunisation and Vaccinations,LEASEPLAN,510570101,335.72
Department of Health,Leicestershire Partnership NHS Trust,28/10/22,Leased / Hired Vehicles,Short Breaks - Specialist Nursing,LEASEPLAN,510570101,113.12
Department of Health,Leicestershire Partnership NHS Trust,28/10/22,Leased / Hired Vehicles,West Planned Care  - Charnwood Hub - Therapy,LEASEPLAN,510570101,10.00
Department of Health,Leicestershire Partnership NHS Trust,28/10/22,Nurse - Band 6 -Agency,AMH - Central Access Point,HCL NURSING,HNSI0001166,2457.91
Department of Health,Leicestershire Partnership NHS Trust,28/10/22,NURSE - BAND 2 - AGENCY,Agnes Unit,HCL NURSING,HNSI0001166,13808.71
Department of Health,Leicestershire Partnership NHS Trust,28/10/22,NURSE - BAND 5 - AGENCY,Agnes Unit,HCL NURSING,HNSI0001166,16566.64
Department of Health,Leicestershire Partnership NHS Trust,28/10/22,NURSE - BAND 2 - AGENCY,Ashby Ward (Bradgate Unit),HCL NURSING,HNSI0001166,8842.17
Department of Health,Leicestershire Partnership NHS Trust,28/10/22,NURSE - BAND 5 - AGENCY,Ashby Ward (Bradgate Unit),HCL NURSING,HNSI0001166,11304.31
Department of Health,Leicestershire Partnership NHS Trust,28/10/22,NURSE - BAND 2 - AGENCY,Beaumont Ward - Bradgate Unit,HCL NURSING,HNSI0001166,3517.39
Department of Health,Leicestershire Partnership NHS Trust,28/10/22,NURSE - BAND 5 - AGENCY,Beaumont Ward - Bradgate Unit,HCL NURSING,HNSI0001166,10801.11
Department of Health,Leicestershire Partnership NHS Trust,28/10/22,NURSE - BAND 2 - AGENCY,Belvoir Psychiatric Intensive Care Unit,HCL NURSING,HNSI0001166,2421.45
Department of Health,Leicestershire Partnership NHS Trust,28/10/22,NURSE - BAND 5 - AGENCY,Belvoir Psychiatric Intensive Care Unit,HCL NURSING,HNSI0001166,6464.22
Department of Health,Leicestershire Partnership NHS Trust,28/10/22,NURSE - BAND 2 - AGENCY,Bosworth Ward - Bradgate Unit,HCL NURSING,HNSI0001166,2253.99
Department of Health,Leicestershire Partnership NHS Trust,28/10/22,NURSE - BAND 5 - AGENCY,Bosworth Ward - Bradgate Unit,HCL NURSING,HNSI0001166,7321.26
Department of Health,Leicestershire Partnership NHS Trust,28/10/22,NURSE - BAND 2 - AGENCY,Cedar (Willows),HCL NURSING,HNSI0001166,3030.19
Department of Health,Leicestershire Partnership NHS Trust,28/10/22,NURSE - BAND 5 - AGENCY,Cedar (Willows),HCL NURSING,HNSI0001166,3573.92
Department of Health,Leicestershire Partnership NHS Trust,28/10/22,Nurse - Band 6 -Agency,City West CMHT MHSOP,HCL NURSING,HNSI0001166,1048.13
Department of Health,Leicestershire Partnership NHS Trust,28/10/22,NURSE - BAND 2 - AGENCY,Coleman Ward,HCL NURSING,HNSI0001166,6221.17
Department of Health,Leicestershire Partnership NHS Trust,28/10/22,NURSE - BAND 5 - AGENCY,Coleman Ward,HCL NURSING,HNSI0001166,3588.47
Department of Health,Leicestershire Partnership NHS Trust,28/10/22,NURSE - BAND 5 - AGENCY,Crisis Resolution,HCL NURSING,HNSI0001166,8.91
Department of Health,Leicestershire Partnership NHS Trust,28/10/22,NURSE - BAND 2 - AGENCY,Griffin Ward (HPC),HCL NURSING,HNSI0001166,4418.23
Department of Health,Leicestershire Partnership NHS Trust,28/10/22,NURSE - BAND 5 - AGENCY,Griffin Ward (HPC),HCL NURSING,HNSI0001166,7235.84
Department of Health,Leicestershire Partnership NHS Trust,28/10/22,NURSE - BAND 2 - AGENCY,Gwendolen Ward,HCL NURSING,HNSI0001166,7894.08
Department of Health,Leicestershire Partnership NHS Trust,28/10/22,NURSE - BAND 5 - AGENCY,Gwendolen Ward,HCL NURSING,HNSI0001166,1761.76
Department of Health,Leicestershire Partnership NHS Trust,28/10/22,NURSE - BAND 2 - AGENCY,Heather Ward,HCL NURSING,HNSI0001166,2797.08
Department of Health,Leicestershire Partnership NHS Trust,28/10/22,NURSE - BAND 5 - AGENCY,Heather Ward,HCL NURSING,HNSI0001166,11032.27
Department of Health,Leicestershire Partnership NHS Trust,28/10/22,NURSE - BAND 2 - AGENCY,Kirby Ward,HCL NURSING,HNSI0001166,9095.87
Department of Health,Leicestershire Partnership NHS Trust,28/10/22,NURSE - BAND 5 - AGENCY,Kirby Ward,HCL NURSING,HNSI0001166,4275.41
Department of Health,Leicestershire Partnership NHS Trust,28/10/22,NURSE - BAND 2 - AGENCY,Maple Ward,HCL NURSING,HNSI0001166,2982.15
Department of Health,Leicestershire Partnership NHS Trust,28/10/22,NURSE - BAND 5 - AGENCY,Maple Ward,HCL NURSING,HNSI0001166,3097.55
Department of Health,Leicestershire Partnership NHS Trust,28/10/22,Nurse - Band 6 -Agency,Mental Health Liaison Team,HCL NURSING,HNSI0001166,408.83
Department of Health,Leicestershire Partnership NHS Trust,28/10/22,NURSE - BAND 2 - AGENCY,Mill Lodge,HCL NURSING,HNSI0001166,4137.93
Department of Health,Leicestershire Partnership NHS Trust,28/10/22,NURSE - BAND 5 - AGENCY,Mill Lodge,HCL NURSING,HNSI0001166,2724.02
Department of Health,Leicestershire Partnership NHS Trust,28/10/22,NURSE - BAND 2 - AGENCY,Phoenix Ward (HPC),HCL NURSING,HNSI0001166,1345.17
Department of Health,Leicestershire Partnership NHS Trust,28/10/22,NURSE - BAND 5 - AGENCY,Phoenix Ward (HPC),HCL NURSING,HNSI0001166,3508.70
Department of Health,Leicestershire Partnership NHS Trust,28/10/22,NURSE - BAND 2 - AGENCY,Place Of Safety Assessment Unit,HCL NURSING,HNSI0001166,519.63
Department of Health,Leicestershire Partnership NHS Trust,28/10/22,NURSE - BAND 5 - AGENCY,Place Of Safety Assessment Unit,HCL NURSING,HNSI0001166,1066.23
Department of Health,Leicestershire Partnership NHS Trust,28/10/22,NURSE - BAND 2 - AGENCY,Stewart House,HCL NURSING,HNSI0001166,1258.43
Department of Health,Leicestershire Partnership NHS Trust,28/10/22,NURSE - BAND 5 - AGENCY,Stewart House,HCL NURSING,HNSI0001166,615.91
Department of Health,Leicestershire Partnership NHS Trust,28/10/22,NURSE - BAND 2 - AGENCY,Sycamore (Willows),HCL NURSING,HNSI0001166,3843.05
Department of Health,Leicestershire Partnership NHS Trust,28/10/22,NURSE - BAND 5 - AGENCY,Sycamore (Willows),HCL NURSING,HNSI0001166,6637.32
Department of Health,Leicestershire Partnership NHS Trust,28/10/22,NURSE - BAND 2 - AGENCY,Thornton Ward - Bradgate Unit,HCL NURSING,HNSI0001166,1054.82
Department of Health,Leicestershire Partnership NHS Trust,28/10/22,NURSE - BAND 5 - AGENCY,Thornton Ward - Bradgate Unit,HCL NURSING,HNSI0001166,573.31
Department of Health,Leicestershire Partnership NHS Trust,28/10/22,NURSE - BAND 2 - AGENCY,Welford Ward,HCL NURSING,HNSI0001166,7315.05
Department of Health,Leicestershire Partnership NHS Trust,28/10/22,NURSE - BAND 5 - AGENCY,Welford Ward,HCL NURSING,HNSI0001166,3244.73
Department of Health,Leicestershire Partnership NHS Trust,28/10/22,NURSE - BAND 2 - AGENCY,CAMHS ED Team,HCL NURSING,HNSI0001168,1110.44
Department of Health,Leicestershire Partnership NHS Trust,28/10/22,NURSE - BAND 2 - AGENCY,CAMHS Inpatient Service,HCL NURSING,HNSI0001168,13474.57
Department of Health,Leicestershire Partnership NHS Trust,28/10/22,NURSE - BAND 5 - AGENCY,CAMHS Inpatient Service,HCL NURSING,HNSI0001168,8015.60
Department of Health,Leicestershire Partnership NHS Trust,28/10/22,Nurse - Band 6 -Agency,CAMHS Outpatients,HCL NURSING,HNSI0001168,3760.53
Department of Health,Leicestershire Partnership NHS Trust,28/10/22,NURSE - BAND 2 - AGENCY,Langley Ward ED Inpatient Service,HCL NURSING,HNSI0001168,1449.96
Department of Health,Leicestershire Partnership NHS Trust,28/10/22,NURSE - BAND 5 - AGENCY,Langley Ward ED Inpatient Service,HCL NURSING,HNSI0001168,3693.39
Department of Health,Leicestershire Partnership NHS Trust,28/10/22,Nurse - Band 6 -Agency,CAMHS Outpatients,HCL WORKFORCE SOLUTIONS,HWSI0001420,28191.37
